{"text_format":"1","workbook":"xlsx","n_sheets":2,"sheets":["Seriespelsranking","Regler"],"not_rendered":{"charts":0,"images":0,"macros":1,"external_links":0,"defined_names":2,"comments":0,"pivot_tables":0},"unopened":[],"bounds":{"document_bytes":16777216,"sheet_cells":100000,"rows_first":2000,"rows_last":500,"rows_between":2000,"halvings":0,"cell_chars":16384,"cell_head_chars":4096},"cells_cut":0,"cells_raw":0,"read":"whole","date_system":"1900"}

{"sheet":"Seriespelsranking","index":0,"n_rows":146,"n_cols":136,"rows_kept":146,"cut":false,"hidden":false,"merged":[]}
[null,"Svenska Hästskokastarförbundets Seriespelsranking"]
[null,"2021_2022"]
[null,"2022-04-02"]
["Plac.","Kastare ","Klubb","Ranking-snitt ",null,"Antal serie-resultat","Total-poäng serie-resultat",null,"Antal vunna dubblar","Antal förlorade dubblar","Antal vunna singlar","Antal förlorade singlar","Antal vunna matcher i %","Inskrivning resultat",null,null,null,null,null,null,null,null,null,null,null,null,null,null,null,null,null,null,null,null,null,null,null,null,null,null,null,null,null,null,null,null,null,null,null,null,null,null,null,null,null,null,null,null,null,null,null,null,null,null,null,null,null,null,"Uträkning   för","statistik vunna resp.","förlorade ","dubblar och singlar."]
[{"$f":"IF(H5=\"x\",DU5&EF5,DU5&EE5)","v":"1(-)"},"Tobias Gneupel","Sibbamåla",{"$f":"IF(F5>0.5,(G5/F5),0)","v":213.71428571428572},null,{"$f":"COUNT(N5:BO5)","v":28},{"$f":"SUM(N5:BO5)","v":5984},"x",{"$f":"COUNTIF(BQ5:DR5,2)","v":0},{"$f":"COUNTIF(BQ5:DR5,-2)","v":0},{"$f":"COUNTIF(BQ5:DR5,1)","v":0},{"$f":"COUNTIF(BQ5:DR5,-1)","v":0},{"$f":"IF(F5>0,(I5+K5)/(F5),0)","v":0},248,186,176,252,138,201,214,161,252,238,282,201,153,191,182,182,154,230,203,195,222,247,198,268,258,310,222,220,null,null,null,null,null,null,null,null,null,null,null,null,null,null,null,null,null,null,null,null,null,null,null,null,null,null,null,null,null,null,null,null,null,null,null,null,null,null,null,null,null,null,null,null,null,null,null,null,null,null,null,null,null,null,null,null,null,null,null,null,null,null,null,null,null,null,null,null,null,null,null,null,null,null,null,null,null,null,null,null,null,null,1,{"$f":"IF(AND(D5=D4,D5=D3,D5=D2,D5=D1),ROW(1:1),IF(AND(D5=D4,D5=D3,D5=D2),ROW(1:1),IF(AND(D5=D4,D5=D3),ROW(1:1),IF(D5=D4,ROW(1:1),IF(D5>1,ROW(1:1),\"-\")))))","v":1},{"$f":"IF(DX5=1,ROW(1:1),\"-\")","v":1},null,1,null,null,null,11,null,{"$f":"IF(DX5=1,DU5,IF(DX5=\"\",DU5,\"\"))","v":1},{"$f":"IF(DX5=1,\"(\"&DT5&\")\",\"(\"&DV5&\")\")","v":"(1)"},"(-)"]
[{"$f":"IF(H6=\"x\",DU6&EF6,DU6&EE6)","v":"2(-)"},"Kent Sundahl","Carlskrona",201.17857142857142,null,28,5633,"x",0,0,0,0,0,241,256,224,200,128,243,199,111,144,218,152,205,200,230,125,196,171,265,237,234,222,178,175,178,180,263,220,238,null,null,null,null,null,null,null,null,null,null,null,null,null,null,null,null,null,null,null,null,null,null,null,null,null,null,null,null,null,null,null,null,null,null,null,null,null,null,null,null,null,null,null,null,null,null,null,null,null,null,null,null,null,null,null,null,null,null,null,null,null,null,null,null,null,null,null,null,null,null,null,null,null,null,null,null,null,null,null,null,null,null,2,{"$f":"IF(AND(D6=D5,D6=D4,D6=D3,D6=D2),ROW(1:1),IF(AND(D6=D5,D6=D4,D6=D3),ROW(1:1),IF(AND(D6=D5,D6=D4),ROW(1:1),IF(D6=D5,ROW(1:1),IF(D6>1,ROW(2:2),\"-\")))))","v":2},2,null,1,null,null,null,16,null,2,"(2)","(-)"]
["3(-)","Matz Karlsson","Korpen Åseda",195.23076923076923,null,26,5076,"x",0,0,0,0,0,184,204,116,163,161,176,193,177,192,289,209,257,182,249,264,217,247,189,119,142,137,171,170,211,234,223,null,null,null,null,null,null,null,null,null,null,null,null,null,null,null,null,null,null,null,null,null,null,null,null,null,null,null,null,null,null,null,null,null,null,null,null,null,null,null,null,null,null,null,null,null,null,null,null,null,null,null,null,null,null,null,null,null,null,null,null,null,null,null,null,null,null,null,null,null,null,null,null,null,null,null,null,null,null,null,null,null,null,null,null,3,{"$f":"IF(AND(D7=D6,D7=D5,D7=D4,D7=D3),ROW(1:1),IF(AND(D7=D6,D7=D5,D7=D4),ROW(1:1),IF(AND(D7=D6,D7=D5),ROW(1:1),IF(D7=D6,ROW(2:2),IF(D7>1,ROW(3:3),\"-\")))))","v":3},3,null,1,null,null,null,20,null,3,"(3)","(-)"]
["4(-)","Jean Fredriksson Väre","Balders Hsk",194.83333333333334,null,36,7014,"x",0,0,0,0,0,162,205,152,201,215,239,229,176,185,151,131,181,156,177,161,158,137,183,203,182,154,204,151,233,212,224,204,268,293,220,190,160,288,228,163,238,null,null,null,null,null,null,null,null,null,null,null,null,null,null,null,null,null,null,null,null,null,null,null,null,null,null,null,null,null,null,null,null,null,null,null,null,null,null,null,null,null,null,null,null,null,null,null,null,null,null,null,null,null,null,null,null,null,null,null,null,null,null,null,null,null,null,null,null,null,null,null,null,null,null,4,{"$f":"IF(AND(D8=D7,D8=D6,D8=D5),ROW(1:1),IF(AND(D8=D7,D8=D6),ROW(2:2),IF(D8=D7,ROW(3:3),IF(D8>1,ROW(4:4),\"-\"))))","v":4},4,null,1,null,null,null,4,null,4,"(4)","(-)"]
["5(-)","Sandra Widlund","Växjö Hsk",182.63636363636363,null,33,6027,"x",0,0,0,0,0,253,80,177,173,157,204,165,223,222,196,190,152,181,161,142,120,204,208,212,252,133,129,188,193,131,171,183,204,213,253,183,178,196,null,null,null,null,null,null,null,null,null,null,null,null,null,null,null,null,null,null,null,null,null,null,null,null,null,null,null,null,null,null,null,null,null,null,null,null,null,null,null,null,null,null,null,null,null,null,null,null,null,null,null,null,null,null,null,null,null,null,null,null,null,null,null,null,null,null,null,null,null,null,null,null,null,null,null,null,null,5,{"$f":"IF(D9>1,ROW(5:5),\"-\")","v":5},5,null,1,null,null,null,1,null,5,"(5)","(-)"]
["6(-)","Sandor Bodi","Växjö Hsk",172.625,null,32,5524,"x",0,0,0,0,0,201,119,152,225,163,209,185,175,184,145,190,158,229,149,172,196,149,123,129,152,187,106,191,176,130,144,174,212,216,192,228,163,null,null,null,null,null,null,null,null,null,null,null,null,null,null,null,null,null,null,null,null,null,null,null,null,null,null,null,null,null,null,null,null,null,null,null,null,null,null,null,null,null,null,null,null,null,null,null,null,null,null,null,null,null,null,null,null,null,null,null,null,null,null,null,null,null,null,null,null,null,null,null,null,null,null,null,null,null,null,6,{"$f":"IF(D10=D9,ROW(5:5),IF(D10>1,ROW(6:6),\"-\"))","v":6},6,null,1,null,null,null,2,null,6,"(6)","(-)"]
["7(-)","Kristian Jältsäter","Vaxholm Hsk",165.84,null,25,4146,"x",0,0,0,0,0,172,180,149,188,206,149,157,218,139,174,156,146,146,158,217,162,127,233,115,188,133,148,118,236,131,null,null,null,null,null,null,null,null,null,null,null,null,null,null,null,null,null,null,null,null,null,null,null,null,null,null,null,null,null,null,null,null,null,null,null,null,null,null,null,null,null,null,null,null,null,null,null,null,null,null,null,null,null,null,null,null,null,null,null,null,null,null,null,null,null,null,null,null,null,null,null,null,null,null,null,null,null,null,null,null,null,null,null,null,null,7,{"$f":"IF(AND(D11=D10,D11=D9,D11=D8,D11=D7),ROW(3:3),IF(AND(D11=D10,D11=D9,D11=D8),ROW(4:4),IF(AND(D11=D10,D11=D9),ROW(5:5),IF(D11=D10,ROW(6:6),IF(D11>1,ROW(7:7),\"-\")))))","v":7},7,null,1,null,null,null,5,null,7,"(7)","(-)"]
["8(-)","Gebriela Kostantinos","Korpen Åseda",162.9047619047619,null,21,3421,"x",0,0,0,0,0,104,124,213,155,175,186,134,128,91,107,208,174,196,149,138,231,209,166,125,217,191,null,null,null,null,null,null,null,null,null,null,null,null,null,null,null,null,null,null,null,null,null,null,null,null,null,null,null,null,null,null,null,null,null,null,null,null,null,null,null,null,null,null,null,null,null,null,null,null,null,null,null,null,null,null,null,null,null,null,null,null,null,null,null,null,null,null,null,null,null,null,null,null,null,null,null,null,null,null,null,null,null,null,null,null,null,null,null,null,null,13,8,8,null,1,null,null,null,6,null,8,"(13)","(-)"]
["9(-)","Ingvar Eriksson","Carlskrona",160.125,null,32,5124,"x",0,0,0,0,0,236,198,156,171,160,165,131,114,152,105,147,111,210,124,153,101,114,142,150,141,187,180,195,278,191,168,162,215,92,107,209,159,null,null,null,null,null,null,null,null,null,null,null,null,null,null,null,null,null,null,null,null,null,null,null,null,null,null,null,null,null,null,null,null,null,null,null,null,null,null,null,null,null,null,null,null,null,null,null,null,null,null,null,null,null,null,null,null,null,null,null,null,null,null,null,null,null,null,null,null,null,null,null,null,null,null,null,null,null,null,8,9,9,null,1,null,null,null,8,null,9,"(8)","(-)"]
["10(-)","Hathaichonlanee Phaengphui","Växjö Hsk",155.17857142857142,null,28,4345,"x",0,0,0,0,0,153,192,199,194,164,136,239,114,142,184,148,88,137,146,175,137,137,145,136,144,123,131,112,180,176,159,155,199,null,null,null,null,null,null,null,null,null,null,null,null,null,null,null,null,null,null,null,null,null,null,null,null,null,null,null,null,null,null,null,null,null,null,null,null,null,null,null,null,null,null,null,null,null,null,null,null,null,null,null,null,null,null,null,null,null,null,null,null,null,null,null,null,null,null,null,null,null,null,null,null,null,null,null,null,null,null,null,null,null,null,14,10,10,null,1,null,null,null,12,null,10,"(14)","(-)"]
["11(-)","Johan Johansson","Tingsryd",153.78787878787878,null,33,5075,"x",0,0,0,0,0,150,93,118,190,143,141,163,197,114,122,140,148,132,126,131,206,176,121,183,187,209,139,142,185,162,209,202,152,133,104,176,158,123,null,null,null,null,null,null,null,null,null,null,null,null,null,null,null,null,null,null,null,null,null,null,null,null,null,null,null,null,null,null,null,null,null,null,null,null,null,null,null,null,null,null,null,null,null,null,null,null,null,null,null,null,null,null,null,null,null,null,null,null,null,null,null,null,null,null,null,null,null,null,null,null,null,null,null,null,null,9,11,11,null,1,null,null,null,15,null,11,"(9)","(-)"]
["12(-)","Armin Sisic","Värends Hsk",153.76190476190476,null,21,3229,"x",0,0,0,0,0,null,null,null,150,236,160,146,200,124,109,101,213,121,152,197,64,129,185,124,148,95,121,232,222,null,null,null,null,null,null,null,null,null,null,null,null,null,null,null,null,null,null,null,null,null,null,null,null,null,null,null,null,null,null,null,null,null,null,null,null,null,null,null,null,null,null,null,null,null,null,null,null,null,null,null,null,null,null,null,null,null,null,null,null,null,null,null,null,null,null,null,null,null,null,null,null,null,null,null,null,null,null,null,null,null,null,null,null,null,null,11,12,12,null,1,null,null,null,21,null,12,"(11)","(-)"]
["13(-)","Gert Karlsson","Korpen Åseda",153.16129032258064,null,31,4748,"x",0,0,0,0,0,97,188,193,124,123,225,142,167,222,159,204,176,209,164,101,135,121,149,102,93,181,164,166,108,166,151,152,182,154,114,116,null,null,null,null,null,null,null,null,null,null,null,null,null,null,null,null,null,null,null,null,null,null,null,null,null,null,null,null,null,null,null,null,null,null,null,null,null,null,null,null,null,null,null,null,null,null,null,null,null,null,null,null,null,null,null,null,null,null,null,null,null,null,null,null,null,null,null,null,null,null,null,null,null,null,null,null,null,null,null,10,13,13,null,1,null,null,null,3,null,13,"(10)","(-)"]
["14(-)","Peter Olsson","Dynapac ",152.4848484848485,null,33,5032,"x",0,0,0,0,0,142,145,231,217,178,96,118,86,135,142,146,138,157,144,202,149,197,114,121,195,187,180,95,101,143,104,113,222,189,149,159,161,176,null,null,null,null,null,null,null,null,null,null,null,null,null,null,null,null,null,null,null,null,null,null,null,null,null,null,null,null,null,null,null,null,null,null,null,null,null,null,null,null,null,null,null,null,null,null,null,null,null,null,null,null,null,null,null,null,null,null,null,null,null,null,null,null,null,null,null,null,null,null,null,null,null,null,null,null,null,18,14,14,null,1,null,null,null,7,null,14,"(18)","(-)"]
["15(-)","Emil Eriksson","Balders Hsk",152.33333333333334,null,3,457,"x",0,0,0,0,0,181,138,138,null,null,null,null,null,null,null,null,null,null,null,null,null,null,null,null,null,null,null,null,null,null,null,null,null,null,null,null,null,null,null,null,null,null,null,null,null,null,null,null,null,null,null,null,null,null,null,null,null,null,null,null,null,null,null,null,null,null,null,null,null,null,null,null,null,null,null,null,null,null,null,null,null,null,null,null,null,null,null,null,null,null,null,null,null,null,null,null,null,null,null,null,null,null,null,null,null,null,null,null,null,null,null,null,null,null,null,12,15,15,null,1,null,null,null,17,null,15,"(12)","(-)"]
["16(-)","Yamonlada Damnoegam","Växjö Hsk",150.42857142857142,null,35,5265,"x",0,0,0,0,0,95,108,163,152,105,166,241,148,124,143,171,144,139,142,173,144,198,135,209,163,98,164,135,140,148,143,185,102,108,194,201,100,148,128,208,null,null,null,null,null,null,null,null,null,null,null,null,null,null,null,null,null,null,null,null,null,null,null,null,null,null,null,null,null,null,null,null,null,null,null,null,null,null,null,null,null,null,null,null,null,null,null,null,null,null,null,null,null,null,null,null,null,null,null,null,null,null,null,null,null,null,null,null,null,null,null,null,null,null,null,17,16,16,null,1,null,null,null,18,null,16,"(17)","(-)"]
["17(-)","Leo Andersson","Carlskrona",148.20588235294119,null,34,5039,"x",0,0,0,0,0,176,126,124,171,164,161,112,225,152,95,167,160,157,130,181,152,147,125,126,93,178,143,124,87,136,214,216,113,181,142,197,135,96,133,null,null,null,null,null,null,null,null,null,null,null,null,null,null,null,null,null,null,null,null,null,null,null,null,null,null,null,null,null,null,null,null,null,null,null,null,null,null,null,null,null,null,null,null,null,null,null,null,null,null,null,null,null,null,null,null,null,null,null,null,null,null,null,null,null,null,null,null,null,null,null,null,null,null,null,null,16,17,17,null,1,null,null,null,24,null,17,"(16)","(-)"]
["18(-)","Malira Eriksson","Balders Hsk",144.86666666666667,null,15,2173,"x",0,0,0,0,0,221,140,144,115,151,186,146,120,149,120,94,124,141,156,166,null,null,null,null,null,null,null,null,null,null,null,null,null,null,null,null,null,null,null,null,null,null,null,null,null,null,null,null,null,null,null,null,null,null,null,null,null,null,null,null,null,null,null,null,null,null,null,null,null,null,null,null,null,null,null,null,null,null,null,null,null,null,null,null,null,null,null,null,null,null,null,null,null,null,null,null,null,null,null,null,null,null,null,null,null,null,null,null,null,null,null,null,null,null,null,15,18,18,null,1,null,null,null,9,null,18,"(15)","(-)"]
["19(-)","Björn Gabrielsson","Vaxholm Hsk",143.31818181818181,null,22,3153,"x",0,0,0,0,0,128,212,187,101,160,169,177,171,152,175,144,144,179,125,136,85,109,81,130,118,148,122,null,null,null,null,null,null,null,null,null,null,null,null,null,null,null,null,null,null,null,null,null,null,null,null,null,null,null,null,null,null,null,null,null,null,null,null,null,null,null,null,null,null,null,null,null,null,null,null,null,null,null,null,null,null,null,null,null,null,null,null,null,null,null,null,null,null,null,null,null,null,null,null,null,null,null,null,null,null,null,null,null,null,null,null,null,null,null,null,19,19,19,null,1,null,null,null,10,null,19,"(19)","(-)"]
["20(-)","Joel Sundahl","Carlskrona",141.75,null,8,1134,"x",0,0,0,0,0,131,150,132,197,164,187,89,84,null,null,null,null,null,null,null,null,null,null,null,null,null,null,null,null,null,null,null,null,null,null,null,null,null,null,null,null,null,null,null,null,null,null,null,null,null,null,null,null,null,null,null,null,null,null,null,null,null,null,null,null,null,null,null,null,null,null,null,null,null,null,null,null,null,null,null,null,null,null,null,null,null,null,null,null,null,null,null,null,null,null,null,null,null,null,null,null,null,null,null,null,null,null,null,null,null,null,null,null,null,null,21,20,20,null,1,null,null,null,22,null,20,"(21)","(-)"]
["20(-)","Mattias Oisson","Dynapac",141.75,null,32,4536,"x",0,0,0,0,0,99,174,222,251,197,148,150,155,88,100,109,195,71,67,149,101,132,102,137,109,197,145,144,64,112,147,142,172,137,150,185,185,null,null,null,null,null,null,null,null,null,null,null,null,null,null,null,null,null,null,null,null,null,null,null,null,null,null,null,null,null,null,null,null,null,null,null,null,null,null,null,null,null,null,null,null,null,null,null,null,null,null,null,null,null,null,null,null,null,null,null,null,null,null,null,null,null,null,null,null,null,null,null,null,null,null,null,null,null,null,27,20,21,null,1,null,null,null,14,null,20,"(27)","(-)"]
["22(-)","Olle Ottosson","Dynapac",141.36111111111111,null,36,5089,"x",0,0,0,0,0,123,99,115,73,74,188,114,170,145,171,98,172,188,166,152,161,167,106,89,151,92,119,203,192,194,195,165,153,140,174,106,79,188,159,79,129,null,null,null,null,null,null,null,null,null,null,null,null,null,null,null,null,null,null,null,null,null,null,null,null,null,null,null,null,null,null,null,null,null,null,null,null,null,null,null,null,null,null,null,null,null,null,null,null,null,null,null,null,null,null,null,null,null,null,null,null,null,null,null,null,null,null,null,null,null,null,null,null,null,null,20,22,22,null,1,null,null,null,13,null,22,"(20)","(-)"]
["23(-)","Björn Landberg","Vaxholm Hsk",141,null,18,2538,"x",0,0,0,0,0,81,97,84,107,106,182,174,166,184,113,158,165,191,244,135,163,104,84,null,null,null,null,null,null,null,null,null,null,null,null,null,null,null,null,null,null,null,null,null,null,null,null,null,null,null,null,null,null,null,null,null,null,null,null,null,null,null,null,null,null,null,null,null,null,null,null,null,null,null,null,null,null,null,null,null,null,null,null,null,null,null,null,null,null,null,null,null,null,null,null,null,null,null,null,null,null,null,null,null,null,null,null,null,null,null,null,null,null,null,null,22,23,23,null,1,null,null,null,19,null,23,"(22)","(-)"]
["24(-)","Mathias Karlberg","Jämjö Hsk",140.375,null,8,1123,"x",0,0,0,0,0,158,147,174,null,null,124,202,132,94,92,null,null,null,null,null,null,null,null,null,null,null,null,null,null,null,null,null,null,null,null,null,null,null,null,null,null,null,null,null,null,null,null,null,null,null,null,null,null,null,null,null,null,null,null,null,null,null,null,null,null,null,null,null,null,null,null,null,null,null,null,null,null,null,null,null,null,null,null,null,null,null,null,null,null,null,null,null,null,null,null,null,null,null,null,null,null,null,null,null,null,null,null,null,null,null,null,null,null,null,null,24,{"$f":"IF(AND(D28=D27,D28=D26,D28=D25,D28=D24),ROW(20:20),IF(AND(D28=D27,D28=D26,D28=D25),ROW(21:21),IF(AND(D28=D27,D28=D26),ROW(22:22),IF(D28=D27,ROW(23:23),IF(D28>1,ROW(24:24),\"-\")))))","v":24},{"$f":"IF(DX28=1,ROW(24:24),\"-\")","v":24},null,1,null,null,null,28,null,{"$f":"IF(DX28=1,DU28,IF(DX28=\"\",DU28,\"\"))","v":24},{"$f":"IF(DX28=1,\"(\"&DT28&\")\",\"(\"&DV28&\")\")","v":"(24)"},"(-)"]
["25(-)","Martin Anjou","Balders Hsk",138.5,null,34,4709,"x",0,0,0,0,0,80,212,114,126,114,128,96,104,80,93,111,117,175,133,null,null,201,120,131,93,193,204,127,87,152,148,163,145,186,231,157,149,150,99,148,142,null,null,null,null,null,null,null,null,null,null,null,null,null,null,null,null,null,null,null,null,null,null,null,null,null,null,null,null,null,null,null,null,null,null,null,null,null,null,null,null,null,null,null,null,null,null,null,null,null,null,null,null,null,null,null,null,null,null,null,null,null,null,null,null,null,null,null,null,null,null,null,null,null,null,25,{"$f":"IF(AND(D29=D28,D29=D27,D29=D26,D29=D25),ROW(21:21),IF(AND(D29=D28,D29=D27,D29=D26),ROW(22:22),IF(AND(D29=D28,D29=D27),ROW(23:23),IF(D29=D28,ROW(24:24),IF(D29>1,ROW(25:25),\"-\")))))","v":25},{"$f":"IF(DX29=1,ROW(25:25),\"-\")","v":25},null,1,null,null,null,23,null,{"$f":"IF(DX29=1,DU29,IF(DX29=\"\",DU29,\"\"))","v":25},{"$f":"IF(DX29=1,\"(\"&DT29&\")\",\"(\"&DV29&\")\")","v":"(25)"},"(-)"]
["26(-)","Lennart Karlsson","Tingsryd",137.34285714285716,null,35,4807,"x",0,0,0,0,0,109,121,127,81,105,107,165,134,138,175,181,129,220,153,109,189,189,123,108,138,199,133,188,152,84,124,128,156,112,113,119,119,154,107,118,null,null,null,null,null,null,null,null,null,null,null,null,null,null,null,null,null,null,null,null,null,null,null,null,null,null,null,null,null,null,null,null,null,null,null,null,null,null,null,null,null,null,null,null,null,null,null,null,null,null,null,null,null,null,null,null,null,null,null,null,null,null,null,null,null,null,null,null,null,null,null,null,null,null,null,23,{"$f":"IF(AND(D30=D29,D30=D28,D30=D27,D30=D26),ROW(22:22),IF(AND(D30=D29,D30=D28,D30=D27),ROW(23:23),IF(AND(D30=D29,D30=D28),ROW(24:24),IF(D30=D29,ROW(25:25),IF(D30>1,ROW(26:26),\"-\")))))","v":26},{"$f":"IF(DX30=1,ROW(26:26),\"-\")","v":26},null,1,null,null,null,25,null,{"$f":"IF(DX30=1,DU30,IF(DX30=\"\",DU30,\"\"))","v":26},{"$f":"IF(DX30=1,\"(\"&DT30&\")\",\"(\"&DV30&\")\")","v":"(23)"},"(-)"]
["27(-)","Mattias Gneupel","Sibbamåla",137.13333333333333,null,30,4114,"x",0,0,0,0,0,187,164,157,212,170,105,102,115,134,120,105,172,154,175,122,169,141,151,82,108,121,102,142,128,146,114,121,162,110,123,null,null,null,null,null,null,null,null,null,null,null,null,null,null,null,null,null,null,null,null,null,null,null,null,null,null,null,null,null,null,null,null,null,null,null,null,null,null,null,null,null,null,null,null,null,null,null,null,null,null,null,null,null,null,null,null,null,null,null,null,null,null,null,null,null,null,null,null,null,null,null,null,null,null,null,null,null,null,null,null,26,{"$f":"IF(AND(D31=D30,D31=D29,D31=D28,D31=D27),ROW(23:23),IF(AND(D31=D30,D31=D29,D31=D28),ROW(24:24),IF(AND(D31=D30,D31=D29),ROW(25:25),IF(D31=D30,ROW(26:26),IF(D31>1,ROW(27:27),\"-\")))))","v":27},{"$f":"IF(DX31=1,ROW(27:27),\"-\")","v":27},null,1,null,null,null,26,null,{"$f":"IF(DX31=1,DU31,IF(DX31=\"\",DU31,\"\"))","v":27},{"$f":"IF(DX31=1,\"(\"&DT31&\")\",\"(\"&DV31&\")\")","v":"(26)"},"(-)"]
["28(-)","Magnus Israelsson","Sibbamåla ",134.13793103448276,null,29,3890,"x",0,0,0,0,0,156,105,82,118,134,98,157,185,130,175,148,86,99,140,129,108,188,115,118,75,149,103,143,151,216,128,179,144,131,null,null,null,null,null,null,null,null,null,null,null,null,null,null,null,null,null,null,null,null,null,null,null,null,null,null,null,null,null,null,null,null,null,null,null,null,null,null,null,null,null,null,null,null,null,null,null,null,null,null,null,null,null,null,null,null,null,null,null,null,null,null,null,null,null,null,null,null,null,null,null,null,null,null,null,null,null,null,null,null,null,31,{"$f":"IF(AND(D32=D31,D32=D30,D32=D29,D32=D28),ROW(24:24),IF(AND(D32=D31,D32=D30,D32=D29),ROW(25:25),IF(AND(D32=D31,D32=D30),ROW(26:26),IF(D32=D31,ROW(27:27),IF(D32>1,ROW(28:28),\"-\")))))","v":28},{"$f":"IF(DX32=1,ROW(28:28),\"-\")","v":28},null,1,null,null,null,27,null,{"$f":"IF(DX32=1,DU32,IF(DX32=\"\",DU32,\"\"))","v":28},{"$f":"IF(DX32=1,\"(\"&DT32&\")\",\"(\"&DV32&\")\")","v":"(31)"},"(-)"]
["29(-)","Anitha Fabbeke","Dynapac",132.375,null,8,1059,"x",0,0,0,0,0,149,173,93,143,102,133,174,92,null,null,null,null,null,null,null,null,null,null,null,null,null,null,null,null,null,null,null,null,null,null,null,null,null,null,null,null,null,null,null,null,null,null,null,null,null,null,null,null,null,null,null,null,null,null,null,null,null,null,null,null,null,null,null,null,null,null,null,null,null,null,null,null,null,null,null,null,null,null,null,null,null,null,null,null,null,null,null,null,null,null,null,null,null,null,null,null,null,null,null,null,null,null,null,null,null,null,null,null,null,null,28,29,29,null,1,null,null,null,29,null,29,"(28)","(-)"]
["30(-)","Mathias Zetterlund","Vaxholm Hsk",131.33333333333334,null,15,1970,"x",0,0,0,0,0,110,105,123,79,175,102,153,127,106,129,187,118,153,105,198,null,null,null,null,null,null,null,null,null,null,null,null,null,null,null,null,null,null,null,null,null,null,null,null,null,null,null,null,null,null,null,null,null,null,null,null,null,null,null,null,null,null,null,null,null,null,null,null,null,null,null,null,null,null,null,null,null,null,null,null,null,null,null,null,null,null,null,null,null,null,null,null,null,null,null,null,null,null,null,null,null,null,null,null,null,null,null,null,null,null,null,null,null,null,null,35,30,30,null,1,null,null,null,30,null,30,"(35)","(-)"]
["31(-)","Gilbert Pettersson","Lanternan",130.0625,null,32,4162,"x",0,0,0,0,0,144,116,126,117,174,113,113,130,149,131,144,142,200,131,109,99,136,143,130,154,144,153,131,115,95,62,140,104,116,127,108,166,null,null,null,null,null,null,null,null,null,null,null,null,null,null,null,null,null,null,null,null,null,null,null,null,null,null,null,null,null,null,null,null,null,null,null,null,null,null,null,null,null,null,null,null,null,null,null,null,null,null,null,null,null,null,null,null,null,null,null,null,null,null,null,null,null,null,null,null,null,null,null,null,null,null,null,null,null,null,29,31,31,null,1,null,null,null,31,null,31,"(29)","(-)"]
["32(-)","Thomas Diedrichs","Vaxholm Hsk",129,null,2,258,"x",0,0,0,0,0,96,162,null,null,null,null,null,null,null,null,null,null,null,null,null,null,null,null,null,null,null,null,null,null,null,null,null,null,null,null,null,null,null,null,null,null,null,null,null,null,null,null,null,null,null,null,null,null,null,null,null,null,null,null,null,null,null,null,null,null,null,null,null,null,null,null,null,null,null,null,null,null,null,null,null,null,null,null,null,null,null,null,null,null,null,null,null,null,null,null,null,null,null,null,null,null,null,null,null,null,null,null,null,null,null,null,null,null,null,null,30,32,32,null,1,null,null,null,32,null,32,"(30)","(-)"]
["33(-)","Emil Nilsson","Balders Hsk",{"$f":"IF(F37>0.5,(G37/F37),0)","v":127.64705882352941},null,{"$f":"COUNT(N37:BO37)","v":17},{"$f":"SUM(N37:BO37)","v":2170},"x",{"$f":"COUNTIF(BQ37:DR37,2)","v":0},{"$f":"COUNTIF(BQ37:DR37,-2)","v":0},{"$f":"COUNTIF(BQ37:DR37,1)","v":0},{"$f":"COUNTIF(BQ37:DR37,-1)","v":0},{"$f":"IF(F37>0,(I37+K37)/(F37),0)","v":0},73,149,121,101,162,null,null,123,161,110,147,109,155,136,137,87,105,142,152,null,null,null,null,null,null,null,null,null,null,null,null,null,null,null,null,null,null,null,null,null,null,null,null,null,null,null,null,null,null,null,null,null,null,null,null,null,null,null,null,null,null,null,null,null,null,null,null,null,null,null,null,null,null,null,null,null,null,null,null,null,null,null,null,null,null,null,null,null,null,null,null,null,null,null,null,null,null,null,null,null,null,null,null,null,null,null,null,null,null,null,34,33,{"$f":"IF(DX37=1,ROW(33:33),\"-\")","v":33},null,1,null,null,null,33,null,{"$f":"IF(DX37=1,DU37,IF(DX37=\"\",DU37,\"\"))","v":33},{"$f":"IF(DX37=1,\"(\"&DT37&\")\",\"(\"&DV37&\")\")","v":"(34)"},"(-)"]
["34(-)","Pascal Letter","Balders Hsk",127.30769230769231,null,26,3310,"x",0,0,0,0,0,128,159,142,139,124,147,153,143,84,122,158,234,192,58,143,114,58,101,141,118,102,149,87,87,125,102,null,null,null,null,null,null,null,null,null,null,null,null,null,null,null,null,null,null,null,null,null,null,null,null,null,null,null,null,null,null,null,null,null,null,null,null,null,null,null,null,null,null,null,null,null,null,null,null,null,null,null,null,null,null,null,null,null,null,null,null,null,null,null,null,null,null,null,null,null,null,null,null,null,null,null,null,null,null,null,null,null,null,null,null,32,34,34,null,1,null,null,null,34,null,34,"(32)","(-)"]
["35(-)","Mikael Grönskog","Sibbamåla",127.2,null,5,636,"x",0,0,0,0,0,155,137,86,138,120,null,null,null,null,null,null,null,null,null,null,null,null,null,null,null,null,null,null,null,null,null,null,null,null,null,null,null,null,null,null,null,null,null,null,null,null,null,null,null,null,null,null,null,null,null,null,null,null,null,null,null,null,null,null,null,null,null,null,null,null,null,null,null,null,null,null,null,null,null,null,null,null,null,null,null,null,null,null,null,null,null,null,null,null,null,null,null,null,null,null,null,null,null,null,null,null,null,null,null,null,null,null,null,null,null,33,35,35,null,1,null,null,null,35,null,35,"(33)","(-)"]
["36(-)","Lisbeth Nygaard-Karlsson","Tingsryd",126.03125,null,32,4033,"x",0,0,0,0,0,115,156,131,176,161,118,94,105,55,86,99,113,96,119,130,89,134,75,172,145,214,85,141,83,150,124,109,151,105,179,148,175,null,null,null,null,null,null,null,null,null,null,null,null,null,null,null,null,null,null,null,null,null,null,null,null,null,null,null,null,null,null,null,null,null,null,null,null,null,null,null,null,null,null,null,null,null,null,null,null,null,null,null,null,null,null,null,null,null,null,null,null,null,null,null,null,null,null,null,null,null,null,null,null,null,null,null,null,null,null,40,36,36,null,1,null,null,null,36,null,36,"(40)","(-)"]
["37(-)","Sebastian Israelsson","Sibbamåla",125,null,5,625,"x",0,0,0,0,0,115,124,138,117,131,null,null,null,null,null,null,null,null,null,null,null,null,null,null,null,null,null,null,null,null,null,null,null,null,null,null,null,null,null,null,null,null,null,null,null,null,null,null,null,null,null,null,null,null,null,null,null,null,null,null,null,null,null,null,null,null,null,null,null,null,null,null,null,null,null,null,null,null,null,null,null,null,null,null,null,null,null,null,null,null,null,null,null,null,null,null,null,null,null,null,null,null,null,null,null,null,null,null,null,null,null,null,null,null,null,38,37,37,null,1,null,null,null,37,null,37,"(38)","(-)"]
["38(-)","Inge Skoglöw","Jämjö Hsk",124.58823529411765,null,17,2118,"x",0,0,0,0,0,141,140,172,null,null,null,94,77,132,107,126,157,125,131,119,98,170,126,110,93,null,null,null,null,null,null,null,null,null,null,null,null,null,null,null,null,null,null,null,null,null,null,null,null,null,null,null,null,null,null,null,null,null,null,null,null,null,null,null,null,null,null,null,null,null,null,null,null,null,null,null,null,null,null,null,null,null,null,null,null,null,null,null,null,null,null,null,null,null,null,null,null,null,null,null,null,null,null,null,null,null,null,null,null,null,null,null,null,null,null,39,38,38,null,1,null,null,null,38,null,38,"(39)","(-)"]
["39(-)","Marcus Petersson","Balders Hsk",123.91176470588235,null,34,4213,"x",0,0,0,0,0,95,136,88,116,172,124,192,107,89,146,129,169,94,null,null,113,139,80,116,148,97,91,115,191,115,141,114,169,115,115,118,113,84,102,100,180,null,null,null,null,null,null,null,null,null,null,null,null,null,null,null,null,null,null,null,null,null,null,null,null,null,null,null,null,null,null,null,null,null,null,null,null,null,null,null,null,null,null,null,null,null,null,null,null,null,null,null,null,null,null,null,null,null,null,null,null,null,null,null,null,null,null,null,null,null,null,null,null,null,null,37,{"$f":"IF(AND(D43=D42,D43=D41,D43=D40,D43=D39),ROW(35:35),IF(AND(D43=D42,D43=D41,D43=D40),ROW(36:36),IF(AND(D43=D42,D43=D41),ROW(37:37),IF(D43=D42,ROW(38:38),IF(D43>1,ROW(39:39),\"-\")))))","v":39},39,null,1,null,null,null,39,null,39,"(37)","(-)"]
["40(-)","Carina Gneupel","Sibbamåla",123.84210526315789,null,19,2353,"x",0,0,0,0,0,146,87,143,95,129,132,147,152,54,100,105,109,120,234,116,168,123,104,89,null,null,null,null,null,null,null,null,null,null,null,null,null,null,null,null,null,null,null,null,null,null,null,null,null,null,null,null,null,null,null,null,null,null,null,null,null,null,null,null,null,null,null,null,null,null,null,null,null,null,null,null,null,null,null,null,null,null,null,null,null,null,null,null,null,null,null,null,null,null,null,null,null,null,null,null,null,null,null,null,null,null,null,null,null,null,null,null,null,null,null,50,40,40,null,1,null,null,null,40,null,40,"(50)","(-)"]
["41(-)","Göran Mårtensson","Jämjö Hsk",121.5,null,22,2673,"x",0,0,0,0,0,144,222,148,163,139,113,142,140,130,109,67,75,119,122,118,100,78,111,106,106,67,154,null,null,null,null,null,null,null,null,null,null,null,null,null,null,null,null,null,null,null,null,null,null,null,null,null,null,null,null,null,null,null,null,null,null,null,null,null,null,null,null,null,null,null,null,null,null,null,null,null,null,null,null,null,null,null,null,null,null,null,null,null,null,null,null,null,null,null,null,null,null,null,null,null,null,null,null,null,null,null,null,null,null,null,null,null,null,null,null,41,41,41,null,1,null,null,null,41,null,41,"(41)","(-)"]
["42(-)","Christer Lööv","Värends Hsk",120.83333333333333,null,6,725,"x",0,0,0,0,0,null,null,null,88,100,144,65,183,145,null,null,null,null,null,null,null,null,null,null,null,null,null,null,null,null,null,null,null,null,null,null,null,null,null,null,null,null,null,null,null,null,null,null,null,null,null,null,null,null,null,null,null,null,null,null,null,null,null,null,null,null,null,null,null,null,null,null,null,null,null,null,null,null,null,null,null,null,null,null,null,null,null,null,null,null,null,null,null,null,null,null,null,null,null,null,null,null,null,null,null,null,null,null,null,null,null,null,null,null,null,43,{"$f":"IF(AND(D46=D45,D46=D44,D46=D43,D46=D42),ROW(38:38),IF(AND(D46=D45,D46=D44,D46=D43),ROW(39:39),IF(AND(D46=D45,D46=D44),ROW(40:40),IF(D46=D45,ROW(41:41),IF(D46>1,ROW(42:42),\"-\")))))","v":42},{"$f":"IF(DX46=1,ROW(42:42),\"-\")","v":42},null,1,null,null,null,42,null,42,"(43)","(-)"]
["43(-)","Leif Danielsson","Korpen Nybro",120.61538461538461,null,26,3136,"x",0,0,0,0,0,123,136,72,99,111,104,143,115,172,102,141,135,135,126,119,123,82,116,59,156,82,144,119,152,134,136,null,null,null,null,null,null,null,null,null,null,null,null,null,null,null,null,null,null,null,null,null,null,null,null,null,null,null,null,null,null,null,null,null,null,null,null,null,null,null,null,null,null,null,null,null,null,null,null,null,null,null,null,null,null,null,null,null,null,null,null,null,null,null,null,null,null,null,null,null,null,null,null,null,null,null,null,null,null,null,null,null,null,null,null,47,43,{"$f":"IF(DX47=1,ROW(43:43),\"-\")","v":43},null,1,null,null,null,43,null,43,"(47)","(-)"]
["44(-)","Lars-Erik Ottosson","Lanternan",120.5,null,32,3856,"x",0,0,0,0,0,139,123,143,165,71,147,79,106,88,156,128,121,100,114,76,120,159,156,120,123,114,72,129,121,101,71,125,192,106,150,125,116,null,null,null,null,null,null,null,null,null,null,null,null,null,null,null,null,null,null,null,null,null,null,null,null,null,null,null,null,null,null,null,null,null,null,null,null,null,null,null,null,null,null,null,null,null,null,null,null,null,null,null,null,null,null,null,null,null,null,null,null,null,null,null,null,null,null,null,null,null,null,null,null,null,null,null,null,null,null,49,44,{"$f":"IF(DX48=1,ROW(44:44),\"-\")","v":44},null,1,null,null,null,52,null,44,"(49)","(-)"]
["45(-)","Hans Johansson","Tingsryd",120.21875,null,32,3847,"x",0,0,0,0,0,132,123,96,143,89,144,106,107,91,120,106,112,129,105,119,155,171,146,127,124,115,166,114,152,108,95,77,130,129,95,93,128,null,null,null,null,null,null,null,null,null,null,null,null,null,null,null,null,null,null,null,null,null,null,null,null,null,null,null,null,null,null,null,null,null,null,null,null,null,null,null,null,null,null,null,null,null,null,null,null,null,null,null,null,null,null,null,null,null,null,null,null,null,null,null,null,null,null,null,null,null,null,null,null,null,null,null,null,null,null,42,45,{"$f":"IF(DX49=1,ROW(45:45),\"-\")","v":45},null,1,null,null,null,44,null,45,"(42)","(-)"]
["46(-)","Christian Balsiger","Värends Hsk",120.2,null,25,3005,"x",0,0,0,0,0,127,125,83,120,90,127,139,126,95,145,150,103,93,122,64,184,132,78,105,131,111,70,118,147,220,null,null,null,null,null,null,null,null,null,null,null,null,null,null,null,null,null,null,null,null,null,null,null,null,null,null,null,null,null,null,null,null,null,null,null,null,null,null,null,null,null,null,null,null,null,null,null,null,null,null,null,null,null,null,null,null,null,null,null,null,null,null,null,null,null,null,null,null,null,null,null,null,null,null,null,null,null,null,null,null,null,null,null,null,null,44,46,{"$f":"IF(DX50=1,ROW(46:46),\"-\")","v":46},null,1,null,null,null,45,null,46,"(44)","(-)"]
["47(-)","Dan Madayang","Korpen Åseda",119.83333333333333,null,6,719,"x",0,0,0,0,0,185,129,127,87,83,108,null,null,null,null,null,null,null,null,null,null,null,null,null,null,null,null,null,null,null,null,null,null,null,null,null,null,null,null,null,null,null,null,null,null,null,null,null,null,null,null,null,null,null,null,null,null,null,null,null,null,null,null,null,null,null,null,null,null,null,null,null,null,null,null,null,null,null,null,null,null,null,null,null,null,null,null,null,null,null,null,null,null,null,null,null,null,null,null,null,null,null,null,null,null,null,null,null,null,null,null,null,null,null,null,45,47,47,null,1,null,null,null,46,null,47,"(45)","(-)"]
["48(-)","Bengt Fabbeke","Dynapac",118.82352941176471,null,17,2020,"x",0,0,0,0,0,106,140,112,160,161,136,118,77,76,108,124,136,99,114,113,89,151,null,null,null,null,null,null,null,null,null,null,null,null,null,null,null,null,null,null,null,null,null,null,null,null,null,null,null,null,null,null,null,null,null,null,null,null,null,null,null,null,null,null,null,null,null,null,null,null,null,null,null,null,null,null,null,null,null,null,null,null,null,null,null,null,null,null,null,null,null,null,null,null,null,null,null,null,null,null,null,null,null,null,null,null,null,null,null,null,null,null,null,null,null,46,48,48,null,1,null,null,null,47,null,48,"(46)","(-)"]
["49(-)","Jonny Åberg","Balders Hsk",118.74285714285715,null,35,4156,"x",0,0,0,0,0,78,99,131,136,118,135,135,99,125,165,106,121,118,127,110,118,155,196,145,130,146,103,88,132,97,107,113,122,150,172,60,91,79,53,96,null,null,null,null,null,null,null,null,null,null,null,null,null,null,null,null,null,null,null,null,null,null,null,null,null,null,null,null,null,null,null,null,null,null,null,null,null,null,null,null,null,null,null,null,null,null,null,null,null,null,null,null,null,null,null,null,null,null,null,null,null,null,null,null,null,null,null,null,null,null,null,null,null,null,null,36,49,49,null,1,null,null,null,48,null,49,"(36)","(-)"]
["50(-)","Fredrik Sandelius","Balders Hsk",117.66666666666667,null,9,1059,"x",0,0,0,0,0,146,74,160,132,85,153,122,118,69,null,null,null,null,null,null,null,null,null,null,null,null,null,null,null,null,null,null,null,null,null,null,null,null,null,null,null,null,null,null,null,null,null,null,null,null,null,null,null,null,null,null,null,null,null,null,null,null,null,null,null,null,null,null,null,null,null,null,null,null,null,null,null,null,null,null,null,null,null,null,null,null,null,null,null,null,null,null,null,null,null,null,null,null,null,null,null,null,null,null,null,null,null,null,null,null,null,null,null,null,null,48,{"$f":"IF(AND(D54=D53,D54=D52,D54=D51,D54=D50),ROW(46:46),IF(AND(D54=D53,D54=D52,D54=D51),ROW(47:47),IF(AND(D54=D53,D54=D52),ROW(48:48),IF(D54=D53,ROW(49:49),IF(D54>1,ROW(50:50),\"-\")))))","v":50},50,null,1,null,null,null,49,null,50,"(48)","(-)"]
["51(-)","Stefan Olofsson","Korpen Nybro",112.13636363636364,null,22,2467,"x",0,0,0,0,0,82,121,87,88,111,109,105,94,72,82,127,103,151,109,116,112,88,139,95,143,180,153,null,null,null,null,null,null,null,null,null,null,null,null,null,null,null,null,null,null,null,null,null,null,null,null,null,null,null,null,null,null,null,null,null,null,null,null,null,null,null,null,null,null,null,null,null,null,null,null,null,null,null,null,null,null,null,null,null,null,null,null,null,null,null,null,null,null,null,null,null,null,null,null,null,null,null,null,null,null,null,null,null,null,null,null,null,null,null,null,54,51,51,null,1,null,null,null,50,null,51,"(54)","(-)"]
["52(-)","Roy Dahlén","Dynapac",111.06666666666666,null,15,1666,"x",0,0,0,0,0,105,110,107,141,229,74,125,88,87,100,145,145,60,94,56,null,null,null,null,null,null,null,null,null,null,null,null,null,null,null,null,null,null,null,null,null,null,null,null,null,null,null,null,null,null,null,null,null,null,null,null,null,null,null,null,null,null,null,null,null,null,null,null,null,null,null,null,null,null,null,null,null,null,null,null,null,null,null,null,null,null,null,null,null,null,null,null,null,null,null,null,null,null,null,null,null,null,null,null,null,null,null,null,null,null,null,null,null,null,null,51,52,52,null,1,null,null,null,51,null,52,"(51)","(-)"]
["53(-)","Erik Smiding","Vaxholm Hsk",111,null,6,666,"x",0,0,0,0,0,83,116,124,75,116,152,null,null,null,null,null,null,null,null,null,null,null,null,null,null,null,null,null,null,null,null,null,null,null,null,null,null,null,null,null,null,null,null,null,null,null,null,null,null,null,null,null,null,null,null,null,null,null,null,null,null,null,null,null,null,null,null,null,null,null,null,null,null,null,null,null,null,null,null,null,null,null,null,null,null,null,null,null,null,null,null,null,null,null,null,null,null,null,null,null,null,null,null,null,null,null,null,null,null,null,null,null,null,null,null,55,53,53,null,1,null,null,null,53,null,53,"(55)","(-)"]
["54(-)","Julia Anjou","Balders Hsk",110.65217391304348,null,23,2545,"x",0,0,0,0,0,75,100,176,95,182,null,null,67,131,67,119,90,154,121,132,130,149,62,86,96,142,139,63,81,88,null,null,null,null,null,null,null,null,null,null,null,null,null,null,null,null,null,null,null,null,null,null,null,null,null,null,null,null,null,null,null,null,null,null,null,null,null,null,null,null,null,null,null,null,null,null,null,null,null,null,null,null,null,null,null,null,null,null,null,null,null,null,null,null,null,null,null,null,null,null,null,null,null,null,null,null,null,null,null,null,null,null,null,null,null,52,54,54,null,1,null,null,null,109,null,54,"(52)","(-)"]
["55(-)","Sune Olsson","Korpen Nybro",110.63157894736842,null,19,2102,"x",0,0,0,0,0,114,87,112,74,95,94,141,176,85,125,107,145,106,75,149,135,82,120,80,null,null,null,null,null,null,null,null,null,null,null,null,null,null,null,null,null,null,null,null,null,null,null,null,null,null,null,null,null,null,null,null,null,null,null,null,null,null,null,null,null,null,null,null,null,null,null,null,null,null,null,null,null,null,null,null,null,null,null,null,null,null,null,null,null,null,null,null,null,null,null,null,null,null,null,null,null,null,null,null,null,null,null,null,null,null,null,null,null,null,null,53,55,55,null,1,null,null,null,54,null,55,"(53)","(-)"]
["56(-)","Berndt Petersson","Lanternan",109.92105263157895,null,38,4177,"x",0,0,0,0,0,144,90,175,135,164,175,152,87,91,112,120,109,104,92,100,143,86,114,88,99,40,113,44,93,140,85,109,106,107,85,78,68,116,99,126,148,120,120,null,null,null,null,null,null,null,null,null,null,null,null,null,null,null,null,null,null,null,null,null,null,null,null,null,null,null,null,null,null,null,null,null,null,null,null,null,null,null,null,null,null,null,null,null,null,null,null,null,null,null,null,null,null,null,null,null,null,null,null,null,null,null,null,null,null,null,null,null,null,null,null,57,56,56,null,1,null,null,null,55,null,56,"(57)","(-)"]
["57(-)","Robert Johansson","Tingsryd",109.16666666666667,null,6,655,"x",0,0,0,0,0,133,101,95,143,95,88,null,null,null,null,null,null,null,null,null,null,null,null,null,null,null,null,null,null,null,null,null,null,null,null,null,null,null,null,null,null,null,null,null,null,null,null,null,null,null,null,null,null,null,null,null,null,null,null,null,null,null,null,null,null,null,null,null,null,null,null,null,null,null,null,null,null,null,null,null,null,null,null,null,null,null,null,null,null,null,null,null,null,null,null,null,null,null,null,null,null,null,null,null,null,null,null,null,null,null,null,null,null,null,null,56,57,57,null,1,null,null,null,56,null,57,"(56)","(-)"]
["58(-)","Christer Eriksson","Korpen Nybro",108.6,null,5,543,"x",0,0,0,0,0,131,81,114,87,130,null,null,null,null,null,null,null,null,null,null,null,null,null,null,null,null,null,null,null,null,null,null,null,null,null,null,null,null,null,null,null,null,null,null,null,null,null,null,null,null,null,null,null,null,null,null,null,null,null,null,null,null,null,null,null,null,null,null,null,null,null,null,null,null,null,null,null,null,null,null,null,null,null,null,null,null,null,null,null,null,null,null,null,null,null,null,null,null,null,null,null,null,null,null,null,null,null,null,null,null,null,null,null,null,null,113,58,58,null,1,null,null,null,57,null,58,"(113)","(-)"]
["59(-)","Anton Alexandersson","Sibbamåla",106,null,11,1166,"x",0,0,0,0,0,121,153,126,71,109,68,151,105,51,85,126,null,null,null,null,null,null,null,null,null,null,null,null,null,null,null,null,null,null,null,null,null,null,null,null,null,null,null,null,null,null,null,null,null,null,null,null,null,null,null,null,null,null,null,null,null,null,null,null,null,null,null,null,null,null,null,null,null,null,null,null,null,null,null,null,null,null,null,null,null,null,null,null,null,null,null,null,null,null,null,null,null,null,null,null,null,null,null,null,null,null,null,null,null,null,null,null,null,null,null,58,59,59,null,1,null,null,null,58,null,59,"(58)","(-)"]
["60(-)","Tomas Lindahl","Korpen Åseda",105.15,null,20,2103,"x",0,0,0,0,0,96,117,205,112,111,114,179,131,76,132,97,87,87,42,109,39,95,73,90,111,null,null,null,null,null,null,null,null,null,null,null,null,null,null,null,null,null,null,null,null,null,null,null,null,null,null,null,null,null,null,null,null,null,null,null,null,null,null,null,null,null,null,null,null,null,null,null,null,null,null,null,null,null,null,null,null,null,null,null,null,null,null,null,null,null,null,null,null,null,null,null,null,null,null,null,null,null,null,null,null,null,null,null,null,null,null,null,null,null,null,59,60,60,null,1,null,null,null,59,null,60,"(59)","(-)"]
["61(-)","Kjell Åkesson","Lanternan",104.89655172413794,null,29,3042,"x",0,0,0,0,0,98,117,137,119,116,126,126,68,100,116,110,59,126,92,121,151,65,105,128,94,59,81,125,77,89,129,130,79,99,null,null,null,null,null,null,null,null,null,null,null,null,null,null,null,null,null,null,null,null,null,null,null,null,null,null,null,null,null,null,null,null,null,null,null,null,null,null,null,null,null,null,null,null,null,null,null,null,null,null,null,null,null,null,null,null,null,null,null,null,null,null,null,null,null,null,null,null,null,null,null,null,null,null,null,null,null,null,null,null,null,60,61,61,null,1,null,null,null,60,null,61,"(60)","(-)"]
[{"$f":"IF(H66=\"x\",DU66&\" (\"&EF66&\")\",DU66&\" (\"&DT66&\")\")","v":"62 ((-))"},"Dan Hallstan","Växjö Hsk",104.83333333333333,null,6,629,"x",0,0,0,0,0,129,78,173,109,92,48,null,null,null,null,null,null,null,null,null,null,null,null,null,null,null,null,null,null,null,null,null,null,null,null,null,null,null,null,null,null,null,null,null,null,null,null,null,null,null,null,null,null,null,null,null,null,null,null,null,null,null,null,null,null,null,null,null,null,null,null,null,null,null,null,null,null,null,null,null,null,null,null,null,null,null,null,null,null,null,null,null,null,null,null,null,null,null,null,null,null,null,null,null,null,null,null,null,null,null,null,null,null,null,null,61,62,62,null,1,null,null,null,61,null,62,"(61)","(-)"]
["63 ((-))","Leif Sundahl","Carlskrona",103.54545454545455,null,11,1139,"x",0,0,0,0,0,72,113,87,137,131,110,98,101,75,107,108,null,null,null,null,null,null,null,null,null,null,null,null,null,null,null,null,null,null,null,null,null,null,null,null,null,null,null,null,null,null,null,null,null,null,null,null,null,null,null,null,null,null,null,null,null,null,null,null,null,null,null,null,null,null,null,null,null,null,null,null,null,null,null,null,null,null,null,null,null,null,null,null,null,null,null,null,null,null,null,null,null,null,null,null,null,null,null,null,null,null,null,null,null,null,null,null,null,null,null,62,63,63,null,1,null,null,null,62,null,63,"(62)","(-)"]
["64 ((-))","Clara Larsson","Värends Hsk",101.92307692307692,null,26,2650,"x",0,0,0,0,0,null,null,67,96,126,136,72,114,166,93,52,138,113,108,123,52,143,73,125,132,71,64,125,118,61,65,76,141,null,null,null,null,null,null,null,null,null,null,null,null,null,null,null,null,null,null,null,null,null,null,null,null,null,null,null,null,null,null,null,null,null,null,null,null,null,null,null,null,null,null,null,null,null,null,null,null,null,null,null,null,null,null,null,null,null,null,null,null,null,null,null,null,null,null,null,null,null,null,null,null,null,null,null,null,null,null,null,null,null,null,63,64,64,null,1,null,null,null,64,null,64,"(63)","(-)"]
["65 ((-))","Roland Andreasson","Lanternan",{"$f":"IF(F69>0.5,(G69/F69),0)","v":101.66666666666667},null,{"$f":"COUNT(N69:BO69)","v":3},{"$f":"SUM(N69:BO69)","v":305},"x",{"$f":"COUNTIF(BQ69:DR69,2)","v":0},{"$f":"COUNTIF(BQ69:DR69,-2)","v":0},{"$f":"COUNTIF(BQ69:DR69,1)","v":0},{"$f":"COUNTIF(BQ69:DR69,-1)","v":0},{"$f":"IF(F69>0,(I69+K69)/(F69),0)","v":0},108,112,85,null,null,null,null,null,null,null,null,null,null,null,null,null,null,null,null,null,null,null,null,null,null,null,null,null,null,null,null,null,null,null,null,null,null,null,null,null,null,null,null,null,null,null,null,null,null,null,null,null,null,null,null,null,null,null,null,null,null,null,null,null,null,null,null,null,null,null,null,null,null,null,null,null,null,null,null,null,null,null,null,null,null,null,null,null,null,null,null,null,null,null,null,null,null,null,null,null,null,null,null,null,null,null,null,null,null,null,64,65,{"$f":"IF(DX69=1,ROW(65:65),\"-\")","v":65},null,1,null,null,null,65,null,{"$f":"IF(DX69=1,DU69,IF(DX69=\"\",DU69,\"\"))","v":65},{"$f":"IF(DX69=1,\"(\"&DT69&\")\",\"(\"&DV69&\")\")","v":"(64)"},"(-)"]
[{"$f":"IF(H70=\"x\",DU70&\" (\"&EF70&\")\",DU70&\" (\"&DT70&\")\")","v":"66 ((-))"},"Martin Antic","Värends Hsk",99.94736842105263,null,19,1899,"x",0,0,0,0,0,102,131,68,160,62,148,112,112,66,78,109,133,95,134,38,81,91,70,109,null,null,null,null,null,null,null,null,null,null,null,null,null,null,null,null,null,null,null,null,null,null,null,null,null,null,null,null,null,null,null,null,null,null,null,null,null,null,null,null,null,null,null,null,null,null,null,null,null,null,null,null,null,null,null,null,null,null,null,null,null,null,null,null,null,null,null,null,null,null,null,null,null,null,null,null,null,null,null,null,null,null,null,null,null,null,null,null,null,null,null,66,66,66,null,1,null,null,null,66,null,66,"(66)","(-)"]
["67 ((-))","Ronny Lundberg","Lanternan",99.904761904761898,null,21,2098,"x",0,0,0,0,0,104,91,142,132,48,94,101,37,61,76,144,101,88,114,103,78,121,132,107,97,127,null,null,null,null,null,null,null,null,null,null,null,null,null,null,null,null,null,null,null,null,null,null,null,null,null,null,null,null,null,null,null,null,null,null,null,null,null,null,null,null,null,null,null,null,null,null,null,null,null,null,null,null,null,null,null,null,null,null,null,null,null,null,null,null,null,null,null,null,null,null,null,null,null,null,null,null,null,null,null,null,null,null,null,null,null,null,null,null,null,73,67,67,null,1,null,null,null,67,null,67,"(73)","(-)"]
["68 ((-))","Thomas Dahl","Växjö Hsk",99.666666666666671,null,6,598,"x",0,0,0,0,0,106,95,119,94,104,80,null,null,null,null,null,null,null,null,null,null,null,null,null,null,null,null,null,null,null,null,null,null,null,null,null,null,null,null,null,null,null,null,null,null,null,null,null,null,null,null,null,null,null,null,null,null,null,null,null,null,null,null,null,null,null,null,null,null,null,null,null,null,null,null,null,null,null,null,null,null,null,null,null,null,null,null,null,null,null,null,null,null,null,null,null,null,null,null,null,null,null,null,null,null,null,null,null,null,null,null,null,null,null,null,67,68,68,null,1,null,null,null,68,null,68,"(67)","(-)"]
["69 ((-))","Janne Pettersson","Balders Hsk",99.454545454545453,null,33,3282,"x",0,0,0,0,0,93,110,99,83,102,159,123,78,123,66,99,121,119,108,55,110,89,82,86,85,128,121,77,89,80,146,109,98,101,87,114,79,63,null,null,null,null,null,null,null,null,null,null,null,null,null,null,null,null,null,null,null,null,null,null,null,null,null,null,null,null,null,null,null,null,null,null,null,null,null,null,null,null,null,null,null,null,null,null,null,null,null,null,null,null,null,null,null,null,null,null,null,null,null,null,null,null,null,null,null,null,null,null,null,null,null,null,null,null,null,65,69,69,null,1,null,null,null,69,null,69,"(65)","(-)"]
["69 ((-))","Irene Petersson","Lanternan",99.454545454545453,null,22,2188,"x",0,0,0,0,0,null,null,null,98,50,130,117,155,111,91,125,89,61,105,87,95,97,84,125,71,43,133,145,98,78,null,null,null,null,null,null,null,null,null,null,null,null,null,null,null,null,null,null,null,null,null,null,null,null,null,null,null,null,null,null,null,null,null,null,null,null,null,null,null,null,null,null,null,null,null,null,null,null,null,null,null,null,null,null,null,null,null,null,null,null,null,null,null,null,null,null,null,null,null,null,null,null,null,null,null,null,null,null,null,null,null,null,null,null,null,68,69,70,null,1,null,null,null,70,null,69,"(68)","(-)"]
["71 ((-))","Göran Olofsson","Korpen Nybro",97.709677419354833,null,31,3029,"x",0,0,0,0,0,83,75,80,97,118,116,142,51,75,126,112,135,139,109,88,97,57,83,65,65,104,112,125,119,84,162,92,75,65,85,93,null,null,null,null,null,null,null,null,null,null,null,null,null,null,null,null,null,null,null,null,null,null,null,null,null,null,null,null,null,null,null,null,null,null,null,null,null,null,null,null,null,null,null,null,null,null,null,null,null,null,null,null,null,null,null,null,null,null,null,null,null,null,null,null,null,null,null,null,null,null,null,null,null,null,null,null,null,null,null,69,{"$f":"IF(AND(D75=D74,D75=D73,D75=D72,D75=D71),ROW(67:67),IF(AND(D75=D74,D75=D73,D75=D72),ROW(68:68),IF(AND(D75=D74,D75=D73),ROW(69:69),IF(D75=D74,ROW(70:70),IF(D75>1,ROW(71:71),\"-\")))))","v":71},71,null,1,null,null,null,114,null,71,"(69)","(-)"]
["72 ((-))","Anders Karlsson","Värends Hsk",96.285714285714292,null,7,674,"x",0,0,0,0,0,109,168,81,60,54,100,102,null,null,null,null,null,null,null,null,null,null,null,null,null,null,null,null,null,null,null,null,null,null,null,null,null,null,null,null,null,null,null,null,null,null,null,null,null,null,null,null,null,null,null,null,null,null,null,null,null,null,null,null,null,null,null,null,null,null,null,null,null,null,null,null,null,null,null,null,null,null,null,null,null,null,null,null,null,null,null,null,null,null,null,null,null,null,null,null,null,null,null,null,null,null,null,null,null,null,null,null,null,null,null,71,72,72,null,1,null,null,null,71,null,72,"(71)","(-)"]
["73 ((-))","Natalie Sundahl","Carlskrona",95.333333333333329,null,15,1430,"x",0,0,0,0,0,147,61,83,120,95,76,127,39,126,71,129,40,102,130,84,null,null,null,null,null,null,null,null,null,null,null,null,null,null,null,null,null,null,null,null,null,null,null,null,null,null,null,null,null,null,null,null,null,null,null,null,null,null,null,null,null,null,null,null,null,null,null,null,null,null,null,null,null,null,null,null,null,null,null,null,null,null,null,null,null,null,null,null,null,null,null,null,null,null,null,null,null,null,null,null,null,null,null,null,null,null,null,null,null,null,null,null,null,null,null,70,73,73,null,1,null,null,null,111,null,73,"(70)","(-)"]
["74 ((-))","Julia Eriksson","Balders Hsk",95.1,null,20,1902,"x",0,0,0,0,0,94,97,109,64,49,31,40,107,121,73,172,117,80,80,92,148,116,54,105,153,null,null,null,null,null,null,null,null,null,null,null,null,null,null,null,null,null,null,null,null,null,null,null,null,null,null,null,null,null,null,null,null,null,null,null,null,null,null,null,null,null,null,null,null,null,null,null,null,null,null,null,null,null,null,null,null,null,null,null,null,null,null,null,null,null,null,null,null,null,null,null,null,null,null,null,null,null,null,null,null,null,null,null,null,null,null,null,null,null,null,77,74,74,null,1,null,null,null,72,null,74,"(77)","(-)"]
["75 ((-))","Sandra Rydell","Värends Hsk",95.038461538461533,null,26,2471,"x",0,0,0,0,0,null,null,113,115,125,148,49,119,91,97,119,87,84,107,118,54,132,67,83,119,75,67,51,71,75,77,122,106,null,null,null,null,null,null,null,null,null,null,null,null,null,null,null,null,null,null,null,null,null,null,null,null,null,null,null,null,null,null,null,null,null,null,null,null,null,null,null,null,null,null,null,null,null,null,null,null,null,null,null,null,null,null,null,null,null,null,null,null,null,null,null,null,null,null,null,null,null,null,null,null,null,null,null,null,null,null,null,null,null,null,72,75,75,null,1,null,null,null,73,null,75,"(72)","(-)"]
["76 ((-))","Martin Smeds","Balders Hsk",93,null,3,279,"x",0,0,0,0,0,102,31,146,null,null,null,null,null,null,null,null,null,null,null,null,null,null,null,null,null,null,null,null,null,null,null,null,null,null,null,null,null,null,null,null,null,null,null,null,null,null,null,null,null,null,null,null,null,null,null,null,null,null,null,null,null,null,null,null,null,null,null,null,null,null,null,null,null,null,null,null,null,null,null,null,null,null,null,null,null,null,null,null,null,null,null,null,null,null,null,null,null,null,null,null,null,null,null,null,null,null,null,null,null,null,null,null,null,null,null,74,76,76,null,1,null,null,null,74,null,76,"(74)","(-)"]
["77 ((-))","Astrid Martinez","Jämjö Hsk",92.666666666666671,null,3,278,"x",0,0,0,0,0,114,98,66,null,null,null,null,null,null,null,null,null,null,null,null,null,null,null,null,null,null,null,null,null,null,null,null,null,null,null,null,null,null,null,null,null,null,null,null,null,null,null,null,null,null,null,null,null,null,null,null,null,null,null,null,null,null,null,null,null,null,null,null,null,null,null,null,null,null,null,null,null,null,null,null,null,null,null,null,null,null,null,null,null,null,null,null,null,null,null,null,null,null,null,null,null,null,null,null,null,null,null,null,null,null,null,null,null,null,null,75,77,77,null,1,null,null,null,75,null,77,"(75)","(-)"]
["78 ((-))","Daniel Mårtensson","Jämjö Hsk",92.5625,null,16,1481,"x",0,0,0,0,0,85,66,88,null,null,81,165,107,44,98,46,83,88,131,77,129,85,108,null,null,null,null,null,null,null,null,null,null,null,null,null,null,null,null,null,null,null,null,null,null,null,null,null,null,null,null,null,null,null,null,null,null,null,null,null,null,null,null,null,null,null,null,null,null,null,null,null,null,null,null,null,null,null,null,null,null,null,null,null,null,null,null,null,null,null,null,null,null,null,null,null,null,null,null,null,null,null,null,null,null,null,null,null,null,null,null,null,null,null,null,76,78,78,null,1,null,null,null,76,null,78,"(76)","(-)"]
["79 ((-))","David Berglund","Balders Hsk",91,null,2,182,"x",0,0,0,0,0,68,114,null,null,null,null,null,null,null,null,null,null,null,null,null,null,null,null,null,null,null,null,null,null,null,null,null,null,null,null,null,null,null,null,null,null,null,null,null,null,null,null,null,null,null,null,null,null,null,null,null,null,null,null,null,null,null,null,null,null,null,null,null,null,null,null,null,null,null,null,null,null,null,null,null,null,null,null,null,null,null,null,null,null,null,null,null,null,null,null,null,null,null,null,null,null,null,null,null,null,null,null,null,null,null,null,null,null,null,null,78,79,79,null,1,null,null,null,77,null,79,"(78)","(-)"]
["80 ((-))","Ingegerd Pettersson","Lanternan",90.652173913043484,null,23,2085,"x",0,0,0,0,0,95,87,null,null,null,115,112,63,34,102,69,159,136,97,133,100,88,128,54,96,58,89,62,99,54,55,null,null,null,null,null,null,null,null,null,null,null,null,null,null,null,null,null,null,null,null,null,null,null,null,null,null,null,null,null,null,null,null,null,null,null,null,null,null,null,null,null,null,null,null,null,null,null,null,null,null,null,null,null,null,null,null,null,null,null,null,null,null,null,null,null,null,null,null,null,null,null,null,null,null,null,null,null,null,null,null,null,null,null,null,79,80,80,null,1,null,null,null,78,null,80,"(79)","(-)"]
["81 ((-))","Jan Petersson","Lanternan",89.727272727272734,null,11,987,"x",0,0,0,0,0,69,94,101,72,72,64,166,79,94,84,92,null,null,null,null,null,null,null,null,null,null,null,null,null,null,null,null,null,null,null,null,null,null,null,null,null,null,null,null,null,null,null,null,null,null,null,null,null,null,null,null,null,null,null,null,null,null,null,null,null,null,null,null,null,null,null,null,null,null,null,null,null,null,null,null,null,null,null,null,null,null,null,null,null,null,null,null,null,null,null,null,null,null,null,null,null,null,null,null,null,null,null,null,null,null,null,null,null,null,null,80,81,81,null,1,null,null,null,79,null,81,"(80)","(-)"]
["82 ((-))","Alf Svensson","Korpen Åseda",87.692307692307693,null,13,1140,"x",0,0,0,0,0,88,72,54,49,89,110,75,92,85,97,111,123,95,null,null,null,null,null,null,null,null,null,null,null,null,null,null,null,null,null,null,null,null,null,null,null,null,null,null,null,null,null,null,null,null,null,null,null,null,null,null,null,null,null,null,null,null,null,null,null,null,null,null,null,null,null,null,null,null,null,null,null,null,null,null,null,null,null,null,null,null,null,null,null,null,null,null,null,null,null,null,null,null,null,null,null,null,null,null,null,null,null,null,null,null,null,null,null,null,null,96,82,82,null,1,null,null,null,80,null,82,"(96)","(-)"]
["83 ((-))","Hernan Hernandez","Jämjö Hsk",87.357142857142861,null,14,1223,"x",0,0,0,0,0,141,125,92,107,95,72,86,86,70,71,77,93,88,20,null,null,null,null,null,null,null,null,null,null,null,null,null,null,null,null,null,null,null,null,null,null,null,null,null,null,null,null,null,null,null,null,null,null,null,null,null,null,null,null,null,null,null,null,null,null,null,null,null,null,null,null,null,null,null,null,null,null,null,null,null,null,null,null,null,null,null,null,null,null,null,null,null,null,null,null,null,null,null,null,null,null,null,null,null,null,null,null,null,null,null,null,null,null,null,null,81,83,83,null,1,null,null,null,81,null,83,"(81)","(-)"]
["84 ((-))","Robert Wretborg","Vaxholm Hsk",86.6,null,5,433,"x",0,0,0,0,0,97,82,81,100,73,null,null,null,null,null,null,null,null,null,null,null,null,null,null,null,null,null,null,null,null,null,null,null,null,null,null,null,null,null,null,null,null,null,null,null,null,null,null,null,null,null,null,null,null,null,null,null,null,null,null,null,null,null,null,null,null,null,null,null,null,null,null,null,null,null,null,null,null,null,null,null,null,null,null,null,null,null,null,null,null,null,null,null,null,null,null,null,null,null,null,null,null,null,null,null,null,null,null,null,null,null,null,null,null,null,82,84,84,null,1,null,null,null,82,null,84,"(82)","(-)"]
["85 ((-))","Jarita Fredriksson Väre","Balders Hsk",85.78125,null,32,2745,"x",0,0,0,0,0,62,109,107,92,71,82,88,65,83,84,82,60,86,46,118,99,95,130,115,48,142,51,36,91,106,83,57,62,98,72,97,128,null,null,null,null,null,null,null,null,null,null,null,null,null,null,null,null,null,null,null,null,null,null,null,null,null,null,null,null,null,null,null,null,null,null,null,null,null,null,null,null,null,null,null,null,null,null,null,null,null,null,null,null,null,null,null,null,null,null,null,null,null,null,null,null,null,null,null,null,null,null,null,null,null,null,null,null,null,null,83,85,85,null,1,null,null,null,83,null,85,"(83)","(-)"]
["86 ((-))","Thorbjörn Svennberg","Balders Hsk",81,null,17,1377,"x",0,0,0,0,0,77,97,81,53,78,34,82,85,74,95,122,95,117,115,45,51,76,null,null,null,null,null,null,null,null,null,null,null,null,null,null,null,null,null,null,null,null,null,null,null,null,null,null,null,null,null,null,null,null,null,null,null,null,null,null,null,null,null,null,null,null,null,null,null,null,null,null,null,null,null,null,null,null,null,null,null,null,null,null,null,null,null,null,null,null,null,null,null,null,null,null,null,null,null,null,null,null,null,null,null,null,null,null,null,null,null,null,null,null,null,84,86,86,null,1,null,null,null,84,null,86,"(84)","(-)"]
["87 ((-))","Lars Johannesson","Jämjö Hsk",80.545454545454547,null,11,886,"x",0,0,0,0,0,97,78,130,null,null,82,91,115,102,27,86,44,34,null,null,null,null,null,null,null,null,null,null,null,null,null,null,null,null,null,null,null,null,null,null,null,null,null,null,null,null,null,null,null,null,null,null,null,null,null,null,null,null,null,null,null,null,null,null,null,null,null,null,null,null,null,null,null,null,null,null,null,null,null,null,null,null,null,null,null,null,null,null,null,null,null,null,null,null,null,null,null,null,null,null,null,null,null,null,null,null,null,null,null,null,null,null,null,null,null,86,87,87,null,1,null,null,null,85,null,87,"(86)","(-)"]
["88 ((-))","Mats Mårtensson","Jämjö Hsk",80.400000000000006,null,10,804,"x",0,0,0,0,0,103,115,40,65,93,69,99,58,65,97,null,null,null,null,null,null,null,null,null,null,null,null,null,null,null,null,null,null,null,null,null,null,null,null,null,null,null,null,null,null,null,null,null,null,null,null,null,null,null,null,null,null,null,null,null,null,null,null,null,null,null,null,null,null,null,null,null,null,null,null,null,null,null,null,null,null,null,null,null,null,null,null,null,null,null,null,null,null,null,null,null,null,null,null,null,null,null,null,null,null,null,null,null,null,null,null,null,null,null,null,87,88,88,null,1,null,null,null,86,null,88,"(87)","(-)"]
["89 ((-))","Ulrika Rydell","Värends Hsk",79.150000000000006,null,20,1583,"x",0,0,0,0,0,null,null,null,74,84,141,118,57,124,31,23,61,69,83,122,92,38,112,107,71,48,49,79,null,null,null,null,null,null,null,null,null,null,null,null,null,null,null,null,null,null,null,null,null,null,null,null,null,null,null,null,null,null,null,null,null,null,null,null,null,null,null,null,null,null,null,null,null,null,null,null,null,null,null,null,null,null,null,null,null,null,null,null,null,null,null,null,null,null,null,null,null,null,null,null,null,null,null,null,null,null,null,null,null,null,null,null,null,null,null,89,89,89,null,1,null,null,null,87,null,89,"(89)","(-)"]
["90 ((-))","Åke Bergqvist","Tingsryd",78.5,null,2,157,"x",0,0,0,0,0,94,63,null,null,null,null,null,null,null,null,null,null,null,null,null,null,null,null,null,null,null,null,null,null,null,null,null,null,null,null,null,null,null,null,null,null,null,null,null,null,null,null,null,null,null,null,null,null,null,null,null,null,null,null,null,null,null,null,null,null,null,null,null,null,null,null,null,null,null,null,null,null,null,null,null,null,null,null,null,null,null,null,null,null,null,null,null,null,null,null,null,null,null,null,null,null,null,null,null,null,null,null,null,null,null,null,null,null,null,null,90,90,90,null,1,null,null,null,88,null,90,"(90)","(-)"]
["91 ((-))","Lasse Brincner","Värends Hsk",78.285714285714292,null,7,548,"x",null,null,null,null,null,null,null,null,72,105,57,38,142,65,69,null,null,null,null,null,null,null,null,null,null,null,null,null,null,null,null,null,null,null,null,null,null,null,null,null,null,null,null,null,null,null,null,null,null,null,null,null,null,null,null,null,null,null,null,null,null,null,null,null,null,null,null,null,null,null,null,null,null,null,null,null,null,null,null,null,null,null,null,null,null,null,null,null,null,null,null,null,null,null,null,null,null,null,null,null,null,null,null,null,null,null,null,null,null,null,null,null,null,null,null,91,91,91,null,1,null,null,null,89,null,91,"(91)","(-)"]
["92 ((-))","Thomas Marklund","Värends Hsk",78.21052631578948,null,19,1486,"x",{"$f":"COUNTIF(BQ96:DR96,2)","v":0},{"$f":"COUNTIF(BQ96:DR96,-2)","v":0},{"$f":"COUNTIF(BQ96:DR96,1)","v":0},{"$f":"COUNTIF(BQ96:DR96,-1)","v":0},{"$f":"IF(F96>0,(I96+K96)/(F96),0)","v":0},72,64,91,74,88,100,51,66,109,108,109,111,47,82,24,51,64,99,76,null,null,null,null,null,null,null,null,null,null,null,null,null,null,null,null,null,null,null,null,null,null,null,null,null,null,null,null,null,null,null,null,null,null,null,null,null,null,null,null,null,null,null,null,null,null,null,null,null,null,null,null,null,null,null,null,null,null,null,null,null,null,null,null,null,null,null,null,null,null,null,null,null,null,null,null,null,null,null,null,null,null,null,null,null,null,null,null,null,null,null,92,92,92,null,1,null,null,null,112,null,92,"(92)","(-)"]
["93 ((-))","Torbjörn Svensson","Balders Hsk",78,null,2,156,"x",0,0,0,0,0,65,91,null,null,null,null,null,null,null,null,null,null,null,null,null,null,null,null,null,null,null,null,null,null,null,null,null,null,null,null,null,null,null,null,null,null,null,null,null,null,null,null,null,null,null,null,null,null,null,null,null,null,null,null,null,null,null,null,null,null,null,null,null,null,null,null,null,null,null,null,null,null,null,null,null,null,null,null,null,null,null,null,null,null,null,null,null,null,null,null,null,null,null,null,null,null,null,null,null,null,null,null,null,null,null,null,null,null,null,null,93,93,93,null,1,null,null,null,90,null,93,"(93)","(-)"]
["94 ((-))","Lisbeth Blihd","Lanternan",77.8,null,10,778,"x",0,0,0,0,0,34,105,84,82,74,35,101,105,99,59,null,null,null,null,null,null,null,null,null,null,null,null,null,null,null,null,null,null,null,null,null,null,null,null,null,null,null,null,null,null,null,null,null,null,null,null,null,null,null,null,null,null,null,null,null,null,null,null,null,null,null,null,null,null,null,null,null,null,null,null,null,null,null,null,null,null,null,null,null,null,null,null,null,null,null,null,null,null,null,null,null,null,null,null,null,null,null,null,null,null,null,null,null,null,null,null,null,null,null,null,94,94,94,null,1,null,null,null,91,null,94,"(94)","(-)"]
["95 ((-))","Bo Petersson","Korpen Nybro",77.375,null,8,619,"x",0,0,0,0,0,102,65,40,34,101,75,112,90,null,null,null,null,null,null,null,null,null,null,null,null,null,null,null,null,null,null,null,null,null,null,null,null,null,null,null,null,null,null,null,null,null,null,null,null,null,null,null,null,null,null,null,null,null,null,null,null,null,null,null,null,null,null,null,null,null,null,null,null,null,null,null,null,null,null,null,null,null,null,null,null,null,null,null,null,null,null,null,null,null,null,null,null,null,null,null,null,null,null,null,null,null,null,null,null,null,null,null,null,null,null,95,95,95,null,1,null,null,null,92,null,95,"(95)","(-)"]
["96 ((-))","Micke Anjou","Balders Hsk",76.5,null,2,153,"x",0,0,0,0,0,33,120,null,null,null,null,null,null,null,null,null,null,null,null,null,null,null,null,null,null,null,null,null,null,null,null,null,null,null,null,null,null,null,null,null,null,null,null,null,null,null,null,null,null,null,null,null,null,null,null,null,null,null,null,null,null,null,null,null,null,null,null,null,null,null,null,null,null,null,null,null,null,null,null,null,null,null,null,null,null,null,null,null,null,null,null,null,null,null,null,null,null,null,null,null,null,null,null,null,null,null,null,null,null,null,null,null,null,null,null,114,96,96,null,1,null,null,null,63,null,96,"(114)","(-)"]
["97 ((-))","Andreas Gundersen","Vaxholm Hsk",{"$f":"IF(F101>0.5,(G101/F101),0)","v":75.666666666666671},null,{"$f":"COUNT(N101:BO101)","v":3},{"$f":"SUM(N101:BO101)","v":227},"x",0,0,0,0,0,97,91,39,null,null,null,null,null,null,null,null,null,null,null,null,null,null,null,null,null,null,null,null,null,null,null,null,null,null,null,null,null,null,null,null,null,null,null,null,null,null,null,null,null,null,null,null,null,null,null,null,null,null,null,null,null,null,null,null,null,null,null,null,null,null,null,null,null,null,null,null,null,null,null,null,null,null,null,null,null,null,null,null,null,null,null,null,null,null,null,null,null,null,null,null,null,null,null,null,null,null,null,null,null,null,null,null,null,null,null,97,97,{"$f":"IF(DX101=1,ROW(97:97),\"-\")","v":97},null,1,null,null,null,93,null,{"$f":"IF(DX101=1,DU101,IF(DX101=\"\",DU101,\"\"))","v":97},{"$f":"IF(DX101=1,\"(\"&DT101&\")\",\"(\"&DV101&\")\")","v":"(97)"},"(-)"]
["98 ((-))","Albin Rydell","Värends Hsk",74.8,null,5,374,"x",0,0,0,0,0,null,null,104,44,75,45,106,null,null,null,null,null,null,null,null,null,null,null,null,null,null,null,null,null,null,null,null,null,null,null,null,null,null,null,null,null,null,null,null,null,null,null,null,null,null,null,null,null,null,null,null,null,null,null,null,null,null,null,null,null,null,null,null,null,null,null,null,null,null,null,null,null,null,null,null,null,null,null,null,null,null,null,null,null,null,null,null,null,null,null,null,null,null,null,null,null,null,null,null,null,null,null,null,null,null,null,null,null,null,null,98,98,98,null,1,null,null,null,94,null,98,"(98)","(-)"]
["99 ((-))","Christoffer Lovén","Balders Hsk",74.736842105263165,null,19,1420,"x",0,0,0,0,0,82,78,49,57,79,86,58,59,57,79,87,55,99,82,60,101,37,95,120,null,null,null,null,null,null,null,null,null,null,null,null,null,null,null,null,null,null,null,null,null,null,null,null,null,null,null,null,null,null,null,null,null,null,null,null,null,null,null,null,null,null,null,null,null,null,null,null,null,null,null,null,null,null,null,null,null,null,null,null,null,null,null,null,null,null,null,null,null,null,null,null,null,null,null,null,null,null,null,null,null,null,null,null,null,null,null,null,null,null,null,103,99,99,null,1,null,null,null,95,null,99,"(103)","(-)"]
["100 ((-))","Micael Carlsson","Värends Hsk",74.5,null,16,1192,"x",0,0,0,0,0,null,null,null,75,89,57,132,64,87,44,63,17,92,77,105,44,95,80,71,null,null,null,null,null,null,null,null,null,null,null,null,null,null,null,null,null,null,null,null,null,null,null,null,null,null,null,null,null,null,null,null,null,null,null,null,null,null,null,null,null,null,null,null,null,null,null,null,null,null,null,null,null,null,null,null,null,null,null,null,null,null,null,null,null,null,null,null,null,null,null,null,null,null,null,null,null,null,null,null,null,null,null,null,null,null,null,null,null,null,null,100,100,100,null,1,null,null,null,96,null,100,"(100)","(-)"]
["101 ((-))","Victor Bengtsson","Vaxholm Hsk",74.15384615384616,null,13,964,"x",0,0,0,0,0,27,67,144,70,97,43,162,52,63,83,57,44,55,null,null,null,null,null,null,null,null,null,null,null,null,null,null,null,null,null,null,null,null,null,null,null,null,null,null,null,null,null,null,null,null,null,null,null,null,null,null,null,null,null,null,null,null,null,null,null,null,null,null,null,null,null,null,null,null,null,null,null,null,null,null,null,null,null,null,null,null,null,null,null,null,null,null,null,null,null,null,null,null,null,null,null,null,null,null,null,null,null,null,null,null,null,null,null,null,null,85,101,101,null,1,null,null,null,97,null,101,"(85)","(-)"]
["102 ((-))","Arne Blidh","Lanternan",73.884615384615387,null,26,1921,"x",0,0,0,0,0,61,33,78,61,72,56,null,null,null,78,115,81,77,51,128,114,84,55,59,75,71,45,99,76,34,90,63,98,67,null,null,null,null,null,null,null,null,null,null,null,null,null,null,null,null,null,null,null,null,null,null,null,null,null,null,null,null,null,null,null,null,null,null,null,null,null,null,null,null,null,null,null,null,null,null,null,null,null,null,null,null,null,null,null,null,null,null,null,null,null,null,null,null,null,null,null,null,null,null,null,null,null,null,null,null,null,null,null,null,null,101,102,102,null,1,null,null,null,98,null,102,"(101)","(-)"]
["103 ((-))","Roger Eriksson","Balders Hsk",73,null,10,730,"x",0,0,0,0,0,71,75,47,76,142,78,40,67,40,94,null,null,null,null,null,null,null,null,null,null,null,null,null,null,null,null,null,null,null,null,null,null,null,null,null,null,null,null,null,null,null,null,null,null,null,null,null,null,null,null,null,null,null,null,null,null,null,null,null,null,null,null,null,null,null,null,null,null,null,null,null,null,null,null,null,null,null,null,null,null,null,null,null,null,null,null,null,null,null,null,null,null,null,null,null,null,null,null,null,null,null,null,null,null,null,null,null,null,null,null,99,{"$f":"IF(AND(D107=D106,D107=D105,D107=D104,D107=D103),ROW(99:99),IF(AND(D107=D106,D107=D105,D107=D104),ROW(100:100),IF(AND(D107=D106,D107=D105),ROW(101:101),IF(D107=D106,ROW(102:102),IF(D107>1,ROW(103:103),\"-\")))))","v":103},103,null,1,null,null,null,99,null,103,"(99)","(-)"]
["104 ((-))","Tommy Svensson","Värends Hsk",72.75,null,8,582,"x",0,0,0,0,0,51,102,102,71,59,64,41,92,null,null,null,null,null,null,null,null,null,null,null,null,null,null,null,null,null,null,null,null,null,null,null,null,null,null,null,null,null,null,null,null,null,null,null,null,null,null,null,null,null,null,null,null,null,null,null,null,null,null,null,null,null,null,null,null,null,null,null,null,null,null,null,null,null,null,null,null,null,null,null,null,null,null,null,null,null,null,null,null,null,null,null,null,null,null,null,null,null,null,null,null,null,null,null,null,null,null,null,null,null,null,102,104,104,null,1,null,null,null,100,null,104,"(102)","(-)"]
["105 ((-))","Torgny Rågfeldt","Balders Hsk",71.5,null,2,143,"x",0,0,0,0,0,60,83,null,null,null,null,null,null,null,null,null,null,null,null,null,null,null,null,null,null,null,null,null,null,null,null,null,null,null,null,null,null,null,null,null,null,null,null,null,null,null,null,null,null,null,null,null,null,null,null,null,null,null,null,null,null,null,null,null,null,null,null,null,null,null,null,null,null,null,null,null,null,null,null,null,null,null,null,null,null,null,null,null,null,null,null,null,null,null,null,null,null,null,null,null,null,null,null,null,null,null,null,null,null,null,null,null,null,null,null,104,105,105,null,1,null,null,null,101,null,105,"(104)","(-)"]
["106 ((-))","Karin Gullbrand","Värends Hsk",71.285714285714292,null,7,499,"x",0,0,0,0,0,51,51,103,67,77,107,43,null,null,null,null,null,null,null,null,null,null,null,null,null,null,null,null,null,null,null,null,null,null,null,null,null,null,null,null,null,null,null,null,null,null,null,null,null,null,null,null,null,null,null,null,null,null,null,null,null,null,null,null,null,null,null,null,null,null,null,null,null,null,null,null,null,null,null,null,null,null,null,null,null,null,null,null,null,null,null,null,null,null,null,null,null,null,null,null,null,null,null,null,null,null,null,null,null,null,null,null,null,null,null,105,106,106,null,1,null,null,null,102,null,106,"(105)","(-)"]
["107 ((-))","Hanna Karlberg","Jämjö Hsk",69.833333333333329,null,12,838,"x",0,0,0,0,0,74,75,82,40,46,93,68,48,84,81,109,38,null,null,null,null,null,null,null,null,null,null,null,null,null,null,null,null,null,null,null,null,null,null,null,null,null,null,null,null,null,null,null,null,null,null,null,null,null,null,null,null,null,null,null,null,null,null,null,null,null,null,null,null,null,null,null,null,null,null,null,null,null,null,null,null,null,null,null,null,null,null,null,null,null,null,null,null,null,null,null,null,null,null,null,null,null,null,null,null,null,null,null,null,null,null,null,null,null,null,106,107,107,null,1,null,null,null,110,null,107,"(106)","(-)"]
["108 ((-))","Alex Rydell","Värends Hsk",69.285714285714292,null,7,485,"x",0,0,0,0,0,67,59,27,57,83,122,70,null,null,null,null,null,null,null,null,null,null,null,null,null,null,null,null,null,null,null,null,null,null,null,null,null,null,null,null,null,null,null,null,null,null,null,null,null,null,null,null,null,null,null,null,null,null,null,null,null,null,null,null,null,null,null,null,null,null,null,null,null,null,null,null,null,null,null,null,null,null,null,null,null,null,null,null,null,null,null,null,null,null,null,null,null,null,null,null,null,null,null,null,null,null,null,null,null,null,null,null,null,null,null,107,108,108,null,1,null,null,null,103,null,108,"(107)","(-)"]
["109 ((-))","Mikael Karlsson","Värends Hsk",66.545454545454547,null,11,732,"x",0,0,0,0,0,10,49,107,114,50,54,28,55,99,71,95,null,null,null,null,null,null,null,null,null,null,null,null,null,null,null,null,null,null,null,null,null,null,null,null,null,null,null,null,null,null,null,null,null,null,null,null,null,null,null,null,null,null,null,null,null,null,null,null,null,null,null,null,null,null,null,null,null,null,null,null,null,null,null,null,null,null,null,null,null,null,null,null,null,null,null,null,null,null,null,null,null,null,null,null,null,null,null,null,null,null,null,null,null,null,null,null,null,null,null,108,109,109,null,1,null,null,null,104,null,109,"(108)","(-)"]
["110 ((-))","Per-Olof Johansson","Sibbamåla",65.5,null,8,524,"x",0,0,0,0,0,95,65,46,65,3,63,97,90,null,null,null,null,null,null,null,null,null,null,null,null,null,null,null,null,null,null,null,null,null,null,null,null,null,null,null,null,null,null,null,null,null,null,null,null,null,null,null,null,null,null,null,null,null,null,null,null,null,null,null,null,null,null,null,null,null,null,null,null,null,null,null,null,null,null,null,null,null,null,null,null,null,null,null,null,null,null,null,null,null,null,null,null,null,null,null,null,null,null,null,null,null,null,null,null,null,null,null,null,null,null,88,110,110,null,1,null,null,null,105,null,110,"(88)","(-)"]
["111 ((-))","Malin Löwberg","Balders Hsk",52.514285714285712,null,35,1838,"x",0,0,0,0,0,28,86,41,75,103,73,3,52,91,44,23,80,45,34,28,67,47,47,35,34,43,48,90,35,42,23,49,47,98,41,62,24,38,128,34,null,null,null,null,null,null,null,null,null,null,null,null,null,null,null,null,null,null,null,null,null,null,null,null,null,null,null,null,null,null,null,null,null,null,null,null,null,null,null,null,null,null,null,null,null,null,null,null,null,null,null,null,null,null,null,null,null,null,null,null,null,null,null,null,null,null,null,null,null,null,null,null,null,null,null,109,111,111,null,1,null,null,null,106,null,111,"(109)","(-)"]
["112 ((-))","Nils-Åke Hansson","Korpen Nybro",50.0625,null,16,801,"x",0,0,0,0,0,35,40,81,47,31,45,42,31,16,79,80,69,24,85,65,31,null,null,null,null,null,null,null,null,null,null,null,null,null,null,null,null,null,null,null,null,null,null,null,null,null,null,null,null,null,null,null,null,null,null,null,null,null,null,null,null,null,null,null,null,null,null,null,null,null,null,null,null,null,null,null,null,null,null,null,null,null,null,null,null,null,null,null,null,null,null,null,null,null,null,null,null,null,null,null,null,null,null,null,null,null,null,null,null,null,null,null,null,null,null,110,112,112,null,1,null,null,null,107,null,112,"(110)","(-)"]
["113 ((-))","Morgan Athle","Sibbamåla",44,null,6,264,"x",0,0,0,0,0,58,31,51,21,58,45,null,null,null,null,null,null,null,null,null,null,null,null,null,null,null,null,null,null,null,null,null,null,null,null,null,null,null,null,null,null,null,null,null,null,null,null,null,null,null,null,null,null,null,null,null,null,null,null,null,null,null,null,null,null,null,null,null,null,null,null,null,null,null,null,null,null,null,null,null,null,null,null,null,null,null,null,null,null,null,null,null,null,null,null,null,null,null,null,null,null,null,null,null,null,null,null,null,null,null,null,null,null,null,null,112,113,113,null,1,null,null,null,108,null,113,"(112)","(-)"]
["114 ((-))","Simon Granqvist","Balders Hsk",37,null,3,111,"x",0,0,0,0,0,70,24,17,null,null,null,null,null,null,null,null,null,null,null,null,null,null,null,null,null,null,null,null,null,null,null,null,null,null,null,null,null,null,null,null,null,null,null,null,null,null,null,null,null,null,null,null,null,null,null,null,null,null,null,null,null,null,null,null,null,null,null,null,null,null,null,null,null,null,null,null,null,null,null,null,null,null,null,null,null,null,null,null,null,null,null,null,null,null,null,null,null,null,null,null,null,null,null,null,null,null,null,null,null,null,null,null,null,null,null,111,114,114,null,1,null,null,null,109,null,114,"(111)","(-)"]
["- ((-))",null,null,0,null,0,0,"x",0,0,0,0,0,null,null,null,null,null,null,null,null,null,null,null,null,null,null,null,null,null,null,null,null,null,null,null,null,null,null,null,null,null,null,null,null,null,null,null,null,null,null,null,null,null,null,null,null,null,null,null,null,null,null,null,null,null,null,null,null,null,null,null,null,null,null,null,null,null,null,null,null,null,null,null,null,null,null,null,null,null,null,null,null,null,null,null,null,null,null,null,null,null,null,null,null,null,null,null,null,null,null,null,null,null,null,null,null,null,null,null,null,null,null,"-","-",115,null,1,null,null,null,112,null,"-","(-)","(-)"]
["115 ((-))",null,null,0,null,0,0,"x",0,0,0,0,0,null,null,null,null,null,null,null,null,null,null,null,null,null,null,null,null,null,null,null,null,null,null,null,null,null,null,null,null,null,null,null,null,null,null,null,null,null,null,null,null,null,null,null,null,null,null,null,null,null,null,null,null,null,null,null,null,null,null,null,null,null,null,null,null,null,null,null,null,null,null,null,null,null,null,null,null,null,null,null,null,null,null,null,null,null,null,null,null,null,null,null,null,null,null,null,null,null,null,null,null,null,null,null,null,null,null,null,null,null,null,115,115,116,null,1,null,null,null,110,null,115,"(115)","(-)"]
["115 ((-))",null,null,0,null,0,0,"x",0,0,0,0,0,null,null,null,null,null,null,null,null,null,null,null,null,null,null,null,null,null,null,null,null,null,null,null,null,null,null,null,null,null,null,null,null,null,null,null,null,null,null,null,null,null,null,null,null,null,null,null,null,null,null,null,null,null,null,null,null,null,null,null,null,null,null,null,null,null,null,null,null,null,null,null,null,null,null,null,null,null,null,null,null,null,null,null,null,null,null,null,null,null,null,null,null,null,null,null,null,null,null,null,null,null,null,null,null,null,null,null,null,null,null,115,{"$f":"IF(AND(D121=D120,D121=D119,D121=D118,D121=D117),ROW(113:113),IF(AND(D121=D120,D121=D119,D121=D118),ROW(114:114),IF(AND(D121=D120,D121=D119),ROW(115:115),IF(D121=D120,ROW(116:116),IF(D121>1,ROW(117:117),\"-\")))))","v":115},{"$f":"IF(DX121=1,ROW(117:117),\"-\")","v":117},null,1,null,null,null,111,null,{"$f":"IF(DX121=1,DU121,IF(DX121=\"\",DU121,\"\"))","v":115},{"$f":"IF(DX121=1,\"(\"&DT121&\")\",\"(\"&DV121&\")\")","v":"(115)"},"(-)"]
["115 ((-))",null,null,0,null,0,0,"x",0,0,0,0,0,null,null,null,null,null,null,null,null,null,null,null,null,null,null,null,null,null,null,null,null,null,null,null,null,null,null,null,null,null,null,null,null,null,null,null,null,null,null,null,null,null,null,null,null,null,null,null,null,null,null,null,null,null,null,null,null,null,null,null,null,null,null,null,null,null,null,null,null,null,null,null,null,null,null,null,null,null,null,null,null,null,null,null,null,null,null,null,null,null,null,null,null,null,null,null,null,null,null,null,null,null,null,null,null,null,null,null,null,null,null,115,{"$f":"IF(AND(D122=D121,D122=D120,D122=D119,D122=D118),ROW(114:114),IF(AND(D122=D121,D122=D120,D122=D119),ROW(115:115),IF(AND(D122=D121,D122=D120),ROW(116:116),IF(D122=D121,ROW(117:117),IF(D122>1,ROW(118:118),\"-\")))))","v":115},{"$f":"IF(DX122=1,ROW(118:118),\"-\")","v":118},null,1,null,null,null,113,null,{"$f":"IF(DX122=1,DU122,IF(DX122=\"\",DU122,\"\"))","v":115},{"$f":"IF(DX122=1,\"(\"&DT122&\")\",\"(\"&DV122&\")\")","v":"(115)"},"(-)"]
["115 ((-))",null,null,0,null,0,0,"x",0,0,0,0,0,null,null,null,null,null,null,null,null,null,null,null,null,null,null,null,null,null,null,null,null,null,null,null,null,null,null,null,null,null,null,null,null,null,null,null,null,null,null,null,null,null,null,null,null,null,null,null,null,null,null,null,null,null,null,null,null,null,null,null,null,null,null,null,null,null,null,null,null,null,null,null,null,null,null,null,null,null,null,null,null,null,null,null,null,null,null,null,null,null,null,null,null,null,null,null,null,null,null,null,null,null,null,null,null,null,null,null,null,null,null,115,{"$f":"IF(AND(D123=D122,D123=D121,D123=D120,D123=D119),ROW(115:115),IF(AND(D123=D122,D123=D121,D123=D120),ROW(116:116),IF(AND(D123=D122,D123=D121),ROW(117:117),IF(D123=D122,ROW(118:118),IF(D123>1,ROW(119:119),\"-\")))))","v":115},{"$f":"IF(DX123=1,ROW(119:119),\"-\")","v":119},null,1,null,null,null,113,null,{"$f":"IF(DX123=1,DU123,IF(DX123=\"\",DU123,\"\"))","v":115},{"$f":"IF(DX123=1,\"(\"&DT123&\")\",\"(\"&DV123&\")\")","v":"(115)"},"(-)"]
[{"$f":"IF(H124=\"x\",DU124&\" (\"&EF124&\")\",DU124&\" (\"&DT124&\")\")","v":"116 ((-))"},null,null,0,null,0,0,"x",0,0,0,0,0,null,null,null,null,null,null,null,null,null,null,null,null,null,null,null,null,null,null,null,null,null,null,null,null,null,null,null,null,null,null,null,null,null,null,null,null,null,null,null,null,null,null,null,null,null,null,null,null,null,null,null,null,null,null,null,null,null,null,null,null,null,null,null,null,null,null,null,null,null,null,null,null,null,null,null,null,null,null,null,null,null,null,null,null,null,null,null,null,null,null,null,null,null,null,null,null,null,null,null,null,null,null,null,null,null,null,null,null,null,null,116,{"$f":"IF(AND(D124=D123,D124=D122,D124=D121,D124=D120),ROW(116:116),IF(AND(D124=D123,D124=D122,D124=D121),ROW(117:117),IF(AND(D124=D123,D124=D122),ROW(118:118),IF(D124=D123,ROW(119:119),IF(D124>1,ROW(120:120),\"-\")))))","v":116},{"$f":"IF(DX124=1,ROW(120:120),\"-\")","v":120},null,1,null,null,null,113,null,{"$f":"IF(DX124=1,DU124,IF(DX124=\"\",DU124,\"\"))","v":116},{"$f":"IF(DX124=1,\"(\"&DT124&\")\",\"(\"&DV124&\")\")","v":"(116)"},"(-)"]
["117 ((-))",null,null,0,null,0,0,"x",0,0,0,0,0,null,null,null,null,null,null,null,null,null,null,null,null,null,null,null,null,null,null,null,null,null,null,null,null,null,null,null,null,null,null,null,null,null,null,null,null,null,null,null,null,null,null,null,null,null,null,null,null,null,null,null,null,null,null,null,null,null,null,null,null,null,null,null,null,null,null,null,null,null,null,null,null,null,null,null,null,null,null,null,null,null,null,null,null,null,null,null,null,null,null,null,null,null,null,null,null,null,null,null,null,null,null,null,null,null,null,null,null,null,null,117,117,121,null,1,null,null,null,113,null,117,"(117)","(-)"]
["118 ((-))",null,null,0,null,0,0,"x",0,0,0,0,0,null,null,null,null,null,null,null,null,null,null,null,null,null,null,null,null,null,null,null,null,null,null,null,null,null,null,null,null,null,null,null,null,null,null,null,null,null,null,null,null,null,null,null,null,null,null,null,null,null,null,null,null,null,null,null,null,null,null,null,null,null,null,null,null,null,null,null,null,null,null,null,null,null,null,null,null,null,null,null,null,null,null,null,null,null,null,null,null,null,null,null,null,null,null,null,null,null,null,null,null,null,null,null,null,null,null,null,null,null,null,118,118,122,null,1,null,null,null,113,null,118,"(118)","(-)"]
["119 ((-))",null,null,0,null,0,0,"x",0,0,0,0,0,null,null,null,null,null,null,null,null,null,null,null,null,null,null,null,null,null,null,null,null,null,null,null,null,null,null,null,null,null,null,null,null,null,null,null,null,null,null,null,null,null,null,null,null,null,null,null,null,null,null,null,null,null,null,null,null,null,null,null,null,null,null,null,null,null,null,null,null,null,null,null,null,null,null,null,null,null,null,null,null,null,null,null,null,null,null,null,null,null,null,null,null,null,null,null,null,null,null,null,null,null,null,null,null,null,null,null,null,null,null,119,119,123,null,1,null,null,null,113,null,119,"(119)","(-)"]
["120 ((-))",null,null,0,null,0,0,"x",0,0,0,0,0,null,null,null,null,null,null,null,null,null,null,null,null,null,null,null,null,null,null,null,null,null,null,null,null,null,null,null,null,null,null,null,null,null,null,null,null,null,null,null,null,null,null,null,null,null,null,null,null,null,null,null,null,null,null,null,null,null,null,null,null,null,null,null,null,null,null,null,null,null,null,null,null,null,null,null,null,null,null,null,null,null,null,null,null,null,null,null,null,null,null,null,null,null,null,null,null,null,null,null,null,null,null,null,null,null,null,null,null,null,null,120,120,124,null,1,null,null,null,113,null,120,"(120)","(-)"]
["121 ((-))",null,null,0,null,0,0,"x",0,0,0,0,0,null,null,null,null,null,null,null,null,null,null,null,null,null,null,null,null,null,null,null,null,null,null,null,null,null,null,null,null,null,null,null,null,null,null,null,null,null,null,null,null,null,null,null,null,null,null,null,null,null,null,null,null,null,null,null,null,null,null,null,null,null,null,null,null,null,null,null,null,null,null,null,null,null,null,null,null,null,null,null,null,null,null,null,null,null,null,null,null,null,null,null,null,null,null,null,null,null,null,null,null,null,null,null,null,null,null,null,null,null,null,121,121,125,null,1,null,null,null,113,null,121,"(121)","(-)"]
["122 ((-))",null,null,0,null,0,0,"x",0,0,0,0,0,null,null,null,null,null,null,null,null,null,null,null,null,null,null,null,null,null,null,null,null,null,null,null,null,null,null,null,null,null,null,null,null,null,null,null,null,null,null,null,null,null,null,null,null,null,null,null,null,null,null,null,null,null,null,null,null,null,null,null,null,null,null,null,null,null,null,null,null,null,null,null,null,null,null,null,null,null,null,null,null,null,null,null,null,null,null,null,null,null,null,null,null,null,null,null,null,null,null,null,null,null,null,null,null,null,null,null,null,null,null,122,122,126,null,1,null,null,null,113,null,122,"(122)","(-)"]
["123 ((-))",null,null,0,null,0,0,"x",0,0,0,0,0,null,null,null,null,null,null,null,null,null,null,null,null,null,null,null,null,null,null,null,null,null,null,null,null,null,null,null,null,null,null,null,null,null,null,null,null,null,null,null,null,null,null,null,null,null,null,null,null,null,null,null,null,null,null,null,null,null,null,null,null,null,null,null,null,null,null,null,null,null,null,null,null,null,null,null,null,null,null,null,null,null,null,null,null,null,null,null,null,null,null,null,null,null,null,null,null,null,null,null,null,null,null,null,null,null,null,null,null,null,null,123,123,127,null,1,null,null,null,113,null,123,"(123)","(-)"]
["124 ((-))",null,null,{"$f":"IF(F132>0.5,(G132/F132),0)","v":0},null,{"$f":"COUNT(N132:BO132)","v":0},{"$f":"SUM(N132:BO132)","v":0},"x",{"$f":"COUNTIF(BQ132:DR132,2)","v":0},{"$f":"COUNTIF(BQ132:DR132,-2)","v":0},{"$f":"COUNTIF(BQ132:DR132,1)","v":0},{"$f":"COUNTIF(BQ132:DR132,-1)","v":0},{"$f":"IF(F132>0,(I132+K132)/(F132),0)","v":0},null,null,null,null,null,null,null,null,null,null,null,null,null,null,null,null,null,null,null,null,null,null,null,null,null,null,null,null,null,null,null,null,null,null,null,null,null,null,null,null,null,null,null,null,null,null,null,null,null,null,null,null,null,null,null,null,null,null,null,null,null,null,null,null,null,null,null,null,null,null,null,null,null,null,null,null,null,null,null,null,null,null,null,null,null,null,null,null,null,null,null,null,null,null,null,null,null,null,null,null,null,null,null,null,null,null,null,null,null,null,125,124,128,null,1,null,null,null,113,null,124,"(125)","(-)"]
["125 ((-))",null,null,0,null,0,0,"x",0,0,0,0,0,null,null,null,null,null,null,null,null,null,null,null,null,null,null,null,null,null,null,null,null,null,null,null,null,null,null,null,null,null,null,null,null,null,null,null,null,null,null,null,null,null,null,null,null,null,null,null,null,null,null,null,null,null,null,null,null,null,null,null,null,null,null,null,null,null,null,null,null,null,null,null,null,null,null,null,null,null,null,null,null,null,null,null,null,null,null,null,null,null,null,null,null,null,null,null,null,null,null,null,null,null,null,null,null,null,null,null,null,null,null,126,125,129,null,1,null,null,null,113,null,125,"(126)","(-)"]
["126 ((-))",null,null,0,null,0,0,"x",0,0,0,0,0,null,null,null,null,null,null,null,null,null,null,null,null,null,null,null,null,null,null,null,null,null,null,null,null,null,null,null,null,null,null,null,null,null,null,null,null,null,null,null,null,null,null,null,null,null,null,null,null,null,null,null,null,null,null,null,null,null,null,null,null,null,null,null,null,null,null,null,null,null,null,null,null,null,null,null,null,null,null,null,null,null,null,null,null,null,null,null,null,null,null,null,null,null,null,null,null,null,null,null,null,null,null,null,null,null,null,null,null,null,null,127,126,130,null,1,null,null,null,113,null,126,"(127)","(-)"]
["127 ((-))",null,null,0,null,0,0,"x",0,0,0,0,0,null,null,null,null,null,null,null,null,null,null,null,null,null,null,null,null,null,null,null,null,null,null,null,null,null,null,null,null,null,null,null,null,null,null,null,null,null,null,null,null,null,null,null,null,null,null,null,null,null,null,null,null,null,null,null,null,null,null,null,null,null,null,null,null,null,null,null,null,null,null,null,null,null,null,null,null,null,null,null,null,null,null,null,null,null,null,null,null,null,null,null,null,null,null,null,null,null,null,null,null,null,null,null,null,null,null,null,null,null,null,128,127,131,null,1,null,null,null,113,null,127,"(128)","(-)"]
["128 ((-))",null,null,0,null,0,0,"x",0,0,0,0,0,null,null,null,null,null,null,null,null,null,null,null,null,null,null,null,null,null,null,null,null,null,null,null,null,null,null,null,null,null,null,null,null,null,null,null,null,null,null,null,null,null,null,null,null,null,null,null,null,null,null,null,null,null,null,null,null,null,null,null,null,null,null,null,null,null,null,null,null,null,null,null,null,null,null,null,null,null,null,null,null,null,null,null,null,null,null,null,null,null,null,null,null,null,null,null,null,null,null,null,null,null,null,null,null,null,null,null,null,null,null,129,128,132,null,1,null,null,null,113,null,128,"(129)","(-)"]
["129 ((-))",null,null,0,null,0,0,"x",0,0,0,0,0,null,null,null,null,null,null,null,null,null,null,null,null,null,null,null,null,null,null,null,null,null,null,null,null,null,null,null,null,null,null,null,null,null,null,null,null,null,null,null,null,null,null,null,null,null,null,null,null,null,null,null,null,null,null,null,null,null,null,null,null,null,null,null,null,null,null,null,null,null,null,null,null,null,null,null,null,null,null,null,null,null,null,null,null,null,null,null,null,null,null,null,null,null,null,null,null,null,null,null,null,null,null,null,null,null,null,null,null,null,null,130,129,133,null,1,null,null,null,113,null,129,"(130)","(-)"]
["130 ((-))",null,null,0,null,0,0,"x",0,0,0,0,0,null,null,null,null,null,null,null,null,null,null,null,null,null,null,null,null,null,null,null,null,null,null,null,null,null,null,null,null,null,null,null,null,null,null,null,null,null,null,null,null,null,null,null,null,null,null,null,null,null,null,null,null,null,null,null,null,null,null,null,null,null,null,null,null,null,null,null,null,null,null,null,null,null,null,null,null,null,null,null,null,null,null,null,null,null,null,null,null,null,null,null,null,null,null,null,null,null,null,null,null,null,null,null,null,null,null,null,null,null,null,131,130,134,null,1,null,null,null,113,null,130,"(131)","(-)"]
["131 ((-))",null,null,0,null,0,0,"x",0,0,0,0,0,null,null,null,null,null,null,null,null,null,null,null,null,null,null,null,null,null,null,null,null,null,null,null,null,null,null,null,null,null,null,null,null,null,null,null,null,null,null,null,null,null,null,null,null,null,null,null,null,null,null,null,null,null,null,null,null,null,null,null,null,null,null,null,null,null,null,null,null,null,null,null,null,null,null,null,null,null,null,null,null,null,null,null,null,null,null,null,null,null,null,null,null,null,null,null,null,null,null,null,null,null,null,null,null,null,null,null,null,null,null,132,131,135,null,1,null,null,null,113,null,131,"(132)","(-)"]
["132 ((-))",null,null,0,null,0,0,"x",0,0,0,0,0,null,null,null,null,null,null,null,null,null,null,null,null,null,null,null,null,null,null,null,null,null,null,null,null,null,null,null,null,null,null,null,null,null,null,null,null,null,null,null,null,null,null,null,null,null,null,null,null,null,null,null,null,null,null,null,null,null,null,null,null,null,null,null,null,null,null,null,null,null,null,null,null,null,null,null,null,null,null,null,null,null,null,null,null,null,null,null,null,null,null,null,null,null,null,null,null,null,null,null,null,null,null,null,null,null,null,null,null,null,null,133,132,136,null,1,null,null,null,113,null,132,"(133)","(-)"]
["133 ((-))",null,null,0,null,0,0,"x",0,0,0,0,0,null,null,null,null,null,null,null,null,null,null,null,null,null,null,null,null,null,null,null,null,null,null,null,null,null,null,null,null,null,null,null,null,null,null,null,null,null,null,null,null,null,null,null,null,null,null,null,null,null,null,null,null,null,null,null,null,null,null,null,null,null,null,null,null,null,null,null,null,null,null,null,null,null,null,null,null,null,null,null,null,null,null,null,null,null,null,null,null,null,null,null,null,null,null,null,null,null,null,null,null,null,null,null,null,null,null,null,null,null,null,134,133,137,null,1,null,null,null,113,null,133,"(134)","(-)"]
["134 ((-))",null,null,0,null,0,0,"x",0,0,0,0,0,null,null,null,null,null,null,null,null,null,null,null,null,null,null,null,null,null,null,null,null,null,null,null,null,null,null,null,null,null,null,null,null,null,null,null,null,null,null,null,null,null,null,null,null,null,null,null,null,null,null,null,null,null,null,null,null,null,null,null,null,null,null,null,null,null,null,null,null,null,null,null,null,null,null,null,null,null,null,null,null,null,null,null,null,null,null,null,null,null,null,null,null,null,null,null,null,null,null,null,null,null,null,null,null,null,null,null,null,null,null,135,134,138,null,1,null,null,null,113,null,134,"(135)","(-)"]
["135 ((-))",null,null,0,null,0,0,"x",0,0,0,0,0,null,null,null,null,null,null,null,null,null,null,null,null,null,null,null,null,null,null,null,null,null,null,null,null,null,null,null,null,null,null,null,null,null,null,null,null,null,null,null,null,null,null,null,null,null,null,null,null,null,null,null,null,null,null,null,null,null,null,null,null,null,null,null,null,null,null,null,null,null,null,null,null,null,null,null,null,null,null,null,null,null,null,null,null,null,null,null,null,null,null,null,null,null,null,null,null,null,null,null,null,null,null,null,null,null,null,null,null,null,null,136,135,139,null,1,null,null,null,113,null,135,"(136)","(-)"]
["136 ((-))",null,null,0,null,0,0,"x",0,0,0,0,0,null,null,null,null,null,null,null,null,null,null,null,null,null,null,null,null,null,null,null,null,null,null,null,null,null,null,null,null,null,null,null,null,null,null,null,null,null,null,null,null,null,null,null,null,null,null,null,null,null,null,null,null,null,null,null,null,null,null,null,null,null,null,null,null,null,null,null,null,null,null,null,null,null,null,null,null,null,null,null,null,null,null,null,null,null,null,null,null,null,null,null,null,null,null,null,null,null,null,null,null,null,null,null,null,null,null,null,null,null,null,137,136,140,null,1,null,null,null,113,null,136,"(137)","(-)"]
["137 ((-))",null,null,0,null,0,0,"x",0,0,0,0,0,null,null,null,null,null,null,null,null,null,null,null,null,null,null,null,null,null,null,null,null,null,null,null,null,null,null,null,null,null,null,null,null,null,null,null,null,null,null,null,null,null,null,null,null,null,null,null,null,null,null,null,null,null,null,null,null,null,null,null,null,null,null,null,null,null,null,null,null,null,null,null,null,null,null,null,null,null,null,null,null,null,null,null,null,null,null,null,null,null,null,null,null,null,null,null,null,null,null,null,null,null,null,null,null,null,null,null,null,null,null,138,137,141,null,1,null,null,null,113,null,137,"(138)","(-)"]
["138 ((-))",null,null,0,null,0,0,"x",0,0,0,0,0,null,null,null,null,null,null,null,null,null,null,null,null,null,null,null,null,null,null,null,null,null,null,null,null,null,null,null,null,null,null,null,null,null,null,null,null,null,null,null,null,null,null,null,null,null,null,null,null,null,null,null,null,null,null,null,null,null,null,null,null,null,null,null,null,null,null,null,null,null,null,null,null,null,null,null,null,null,null,null,null,null,null,null,null,null,null,null,null,null,null,null,null,null,null,null,null,null,null,null,null,null,null,null,null,null,null,null,null,null,null,139,138,142,null,1,null,null,null,113,null,138,"(139)","(-)"]

{"sheet":"Regler","index":1,"n_rows":29,"n_cols":1,"rows_kept":29,"cut":false,"hidden":false,"merged":[]}
["Regler för Sverige-,Junior- o Miniorranking"]
[]
["Rankingpoäng utgör den totala poängen från rankingtävlingar under säsongen "]
["som varje enskild kastare har fått ihop."]
["Max från 13 tävlingar kan medräknas, och då räknas de 13 med högst resultat."]
[]
["Den som har högst poäng när säsongen är över vinner."]
[]
["Skulle det vara kastare som hamnar på samma poäng när säsongen är över, och är bland de"]
["tre bästa så gäller detta för att skilja dem åt."]
[]
["1. Högst snitt per serie"]
["2. Högst poäng på en tävling, sedan näst högst osv."]
["3. Högsta poängen på senaste tävlingen, sedan den dessför innan osv.(DM-tävlingar ej inräknade) "]
["4. Skulle det fortfarande inte gå att skilja dem åt, så blir de på samma plats."]
[]
[]
["Seriespelsranking"]
[]
["Alla individuella seriespelsresultaten under säsongen räknas in."]
["Den som har högst snitt när säsongen är över vinner. "]
[]
["För att kunna vara bland de tre pristagarna, måste man spelat minst 7 serier."]
[]
["Skulle det vara kastare som hamnar på samma snitt när säsongen är över, och är bland de"]
["tre bästa så gäller detta för att skilja dem åt."]
[]
["1. Det högsta serieresultatet, sedan näst högsta osv."]
["2. Skulle det fortfarande inte gå att skilja dem åt, så blir de på samma plats."]